Workbook

Sheet 1. Yfirlit
A1: Orkurammi - Yfirlit
B4: Þak | C4: Ureglugerð | D4: Notað
B5: =HYPERLINK("["&B46&"]Létt_þak","Létt þak") -> Létt þak | C5: 0.2
B6: =HYPERLINK("["&B46&"]Uppstólað_þak_á_steypta_plötu","Uppstólað þak á steypta plötu") -> Uppstólað þak á steypta plötu | C6: 0.2
B7: =HYPERLINK("["&B46&"]Viðsnúið_þak","Viðsnúið þak") -> Viðsnúið þak | C7: 0.2
B8: =HYPERLINK("["&B46&"]Kalt_þak","Kalt þak") -> Kalt þak | C8: 0.2
B9: =HYPERLINK("["&B46&"]Þak_annað","Annað") -> Annað | C9: 0.2
B10: Steyptir veggir
B11: =HYPERLINK("["&B46&"]Steyptur_veggur_einangraður_að_innan","Steyptur veggur einangraður að innan") -> Steyptur veggur einangraður að innan | C11: 0.4
B12: =HYPERLINK("["&B46&"]Steyptur_veggur_einangraður_að_utan","Steyptur veggur einangraður að utan") -> Steyptur veggur einangraður að utan | C12: 0.4
B13: =HYPERLINK("["&B46&"]Steyptur_veggur_annað","Annað") -> Annað | C13: 0.4
B14: Léttir veggir
B15: =HYPERLINK("["&B46&"]Léttur_veggur","Léttur veggur") -> Léttur veggur | C15: 0.3
B16: =HYPERLINK("["&B46&"]Léttur_veggur_annað","Annað") -> Annað | C16: 0.3
B17: Gólf
B18: =HYPERLINK("["&B46&"]Gólf_sökkull_með_innveggjum","Gólf - Sökkull með innveggjum") -> Gólf - Sökkull með innveggjum | C18: 0.3
B19: =HYPERLINK("["&B46&"]Steypt_gólf_með_gólfgeisla_tvöföld","Steypt gólf með gólfgeisla (tvöföld einangrun)") -> Steypt gólf með gólfgeisla (tvöföld einangrun) | C19: 0.3
B20: =HYPERLINK("["&B46&"]Steypt_gólf_með_gólfgeisla_einföld","Steypt gólf með gólfgeisla (einföld einangrun)") -> Steypt gólf með gólfgeisla (einföld einangrun) | C20: 0.3
B21: =HYPERLINK("["&B46&"]Gólf_annað","Annað") -> Annað | C21: 0.3
B22: Gluggar
B23: =HYPERLINK("["&B46&"]Gluggar_Hurðir","Vegið meðaltal glugga") -> Vegið meðaltal glugga | C23: 2
B24: Hurðir
B25: =HYPERLINK("["&B46&"]Gluggar_Hurðir","Vegið meðaltal hurða") -> Vegið meðaltal hurða | C25: 2
D39: Niðurstaða
D40: Orkurammi | F40: ='2. Orkurammi'!D39 -> 204 | G40: W/K
D41: Rauntap | F41: ='2. Orkurammi'!C42 -> 196.3624861 | G41: W/K
D42: Leiðnitap á ferm. gólfs | F42: ='2. Orkurammi'!C46 -> 0.9818124307 | G42: W/m2°C
D43: Útveggir,vegið meðaltal | F43: ='2. Orkurammi'!C48 -> 0.5658533248 | G43: W/m2K
D44: Aflþörf | F44: ='6. Orkubúskapur'!B40 -> 11632.68702 | G44: W
D45: Varmaþörf | F45: ='6. Orkubúskapur'!B42 -> 42080.74673 | G45: kWh/ár
B46: Orkurammi_mini.xlsm

Sheet 2. Orkurammi
A1: TAFLA 1 ORKURAMMI | H1: ATH! Gera þarf haus (header) á orkurammann. Hausinn sést ekki í normal view, til þess að sjá og uppfæra hausinn,
A2: Byggingarhluti | B2: Lýsing | C2: Flatarmál | D2: U | E2: U· A | H2: skal velja View og svo Page layout. Fylla svo inn á viðeigandi staði
C3: A (m2) | H3: Athuga skal að nota skal töflurnar hér að neðan við gerð orkurammans, þar sem viðeigandi reitir í Orkurammanum uppfærast útfrá
H4: töflunum. Aðeins skal slá inn í þá reiti orkurammans sem eru með bláum lit (s.s lengd kuldabrúa)
A5: Þak | B5: Létt timburþak | C5: =N11 -> 200 | D5: 0.2 | E5: =+C5*D5 -> 40 | N5: "Loka" U-gildi
A6: Steyptir veggir | B6: 180mm, steinað | C6: =N12 -> 150 | D6: 0.4 | E6: 60 | H6: ATH! Skjalið er stillt (print area) þannig að töflurnar hér að neðan | L6: ATH! Áður en orkuramminn er prentaður er góð | N6: Veljið af lista
A7: Léttir veggir | B7: Ekki | C7: =N13 -> 0 | D7: 0.3 | E7: 0 | H7: prentast ekki, heldur aðeins orkuramminn. Hægt er að breyta | L7: hugmynd að fjarlægja bláa litinn úr reitum (s.s | N7: Innsláttarreitir
A8: Gólf | B8: 120 mm plata á fyll. | C8: =N14 -> 200 | D8: 0.3 | E8: 60 | H8: því með því að velja page layout (clear print area/add to print area) | L8: reitum fyrir lýsingar og kuldabrýr), þ.e. nota "No fill" | N8: Einangrunarþykktir
A9: Gluggar/Hurðir | C9: =N15+N16 -> 22 | D9: 2 | E9: 44 | H9: Gerð einstakra byggingarhluta | M9: Flatarmál byggingarhluta
H10: Gólf | M10: Byggingarhluti | N10: Flatarmál (m2)
C11: Orkurammi | D11: Σ U· A | E11: =SUM(E5:E10) -> 204 | H11: Veljið gólfgerð | M11: Þak | N11: 200
A12: TAFLA 2 RAUNTAP GEGNUM HJÚP OG BOTNPLÖTU | H12: Gólf án gólfgeisla | I12: =INDEX(Gólfstuðlar,Valin_röð_gólf) -> 0.4285714286 | J12: ? | M12: Steyptir veggir | N12: 150
A13: Byggingarhluti | B13: Lýsing | C13: Flatarmál | D13: U | E13: U· A | F13: Einangrunarþ. | H13: Ef gólfgeisli, er einangrað undir geisla? | I13: Nei | M13: Léttir veggir | N13: 0
C14: A (m2) | F14: mm | H14: Leiðrétt. vegna kuldabrúr undir innvegg | I14: =IF(I13="Nei",45/35,1) -> 1.285714286 | M14: Gólf (Botnplata) | N14: 200
M15: Gluggar | N15: 18
A16: Þak | B16: =B5 -> Létt timburþak | C16: =N11 -> 200 | D16: =N22 -> 0.2 | E16: =+C16*D16 -> 40 | F16: =O22 -> 211.7014286 | H16: Gluggar | M16: Hurðir | N16: 4
A17: Steyptir veggir | B17: =B6 -> 180mm, steinað | C17: =N12 -> 150 | D17: =N24 -> 0.4 | E17: =+C17*D17 -> 60 | F17: =O24 -> 85.88735714 | H17: Er U-gildi glugga þekkt fyrirfram (Já/Nei) | I17: Nei | M17: Heildarfermetrafjöldi gólfs | N17: 200
A18: Léttir veggir | B18: =B7 -> Ekki | C18: =N13 -> 0 | D18: =N26 -> 0.3 | E18: =+C18*D18 -> 0 | F18: =O26 -> 132.9961084 | H18: Ef Já, sláðu inn U-gildi glugga | L18: ATH! Lengd kuldabrúa þarf að slá inn hverja fyrir sig í Töflu 3:
A19: Gólf | B19: =B8 -> 120 mm plata á fyll. | C19: =N14 -> 200 | D19: =N28 -> 0.3 | E19: =IF(H12="Önnur",(C19*D19)*J12,(C19*D19)*I12) -> 25.71428571 | F19: =O28 -> 144.4422093 | L19: Tap gegnum kuldabrýr til vinstri
A20: Gluggar | C20: 18 | D20: =IF(I17="Já",I18,I26) -> 1.704093695 | E20: 30.67368651 | H20: Ef Nei, veldu glergerðir að neðan: | M20: Veljið gerð byggingarhluta
A21: Hurðir | C21: 4 | D21: =IF(I29="Já",I30,I38) -> 1.663271339 | E21: 6.653085355 | H21: Veljið glergerð (fast gler) | I21: U - gildi | M21: Þak | N21: U - gildi | O21: Ein. Þykkt [mm]
H22: TopN+ (16 mm gasfyllt bil) | I22: =INDEX(Gluggar_Ugildi,'12. Gerðir'!$A$20) -> 1.1 | J22: ? | M22: Létt þak | N22: =INDEX(Þak_Ugildi,'12. Gerðir'!$A$45) -> 0.2 | O22: =INDEX(Þak_einþykkt,'12. Gerðir'!A45) -> 211.7014286
C23: Rauntap | D23: Σ U· A | E23: =SUM(E16:E22) -> 163.0410576 | H23: Veljið glergerð (opnanlegt fag) | M23: Steyptir veggir
A24: TAFLA 3 TAP GEGNUM KULDABRÝR | H24: K gler (12 mm loftbil) | I24: =INDEX(Gluggar_Ugildi,'12. Gerðir'!A21) -> 1.9 | J24: ? | M24: Steyptur veggur einangraður að innan | N24: =INDEX(Steyptir_veggir_Ugildi,'12. Gerðir'!$A$51) -> 0.4 | O24: =INDEX(Steyptir_veggir_einþykkt,'12. Gerðir'!A51) -> 85.88735714
A25: Kuldabrýr | C25: Lengd L | D25: ψ(W/mK) | E25: ψ·L (W/K) | M25: Léttir veggir
H26: Vegið U-gildi glugga | I26: ='5. Gluggar&Hurðir'!G43 -> 1.704093695 | M26: Léttur veggur | N26: =INDEX(Léttir_veggir_Ugildi,'12. Gerðir'!$A$56) -> 0.3 | O26: =INDEX(Léttir_veggir_einþykkt,'12. Gerðir'!A56) -> 132.9961084
A27: Lóðréttar kuldabrýr við úthorn | C27: 12 | D27: 0.04 | E27: =+C27*D27 -> 0.48 | M27: Gólf
A28: Láréttar kuldabrýr við plötuskil | C28: 0 | D28: 0.83 | E28: =+C28*D28 -> 0 | H28: Hurðir | M28: Gólf - Sökkull með innveggjum | N28: =INDEX(Gólf_Ugildi,'12. Gerðir'!$A$63) -> 0.3 | O28: =INDEX(Gólf_einþykkt,'12. Gerðir'!A63) -> 144.4422093
A29: Lóðréttar kuldabrýr við útvegg/innvegg | C29: 9 | D29: 0.83 | E29: =+C29*D29 -> 7.47 | H29: Er U-gildi hurða þekkt fyrirfram (Já/Nei) | I29: Nei | L29: ATH! Allar uppfærslur á töflunni hér að ofan skal gera í skjalinu "Þykkt einangrunar".
A30: Kuldabrýr við svalir | C30: 0 | D30: 0.83 | E30: 0 | H30: Ef Já, sláðu inn U-gildi hurða | L30: U-gildi vísa í töflur í skjalinu Þykkt einangrunar og uppfærast sjálfkrafa
A31: Kuldabrýr útistigi-útveggur | C31: 0 | D31: 0.6 | E31: 0 | L31: samfara breytingum sem eru gerðar á því skjal. Best er að nota flýtivísana
A32: Kuldabrýr við glugga | C32: 20 | D32: 0.04 | E32: 0.8 | H32: Ef nei, veldu gerðir að neðan | L32: í skjalinu Yfirlit til þess að komast á viðeigandi stað í skjalinu
A33: Kuldabrýr við hurðir | C33: 10 | D33: 0.04 | E33: 0.4 | H33: Veljið gerð aðalhurðar | I33: U - gildi | L33: Þykkt einangrunar. (T.d. Ef valið er valmöguleikinn "Annað" er nauðsynlegt að uppfæra U-gildi og
A34: Sökkull undir útvegg | C34: 60 | D34: 0.48 | E34: =IF(H12="Önnur",(C34*D34)*J12,(C34*D34)*I12) -> 12.34285714 | H34: Aðalhurð glerjuð að hluta | I34: =INDEX(Hurðir_Ugildi,'12. Gerðir'!A29) -> 1.56433958 | J34: 1.4 | L34: þykkt í skjalinu Þykkt einangrunar en EKKI skrifa þau beint inn í reitina í töflunni að ofan)
A35: Sökkull undir innvegg | C35: 20 | D35: 0.46 | E35: =(C35*D35)*I14 -> 11.82857143 | H35: Veljið gerð svalahurðar
A36: Aðrar | C36: 0 | E36: =C36*D36 -> 0 | H36: Svalahurð (0,9*2,05) - Ghlutf c.a. 52 % | I36: =INDEX(Svalahurðir_Ugildi,'12. Gerðir'!A34) -> 1.78201626 | J36: 1
C37: Kuldabrýr | D37: Σ ψ· L | E37: =SUM(E27:E36) -> 33.32142857
H38: Vegið U-gildi hurða | I38: ='5. Gluggar&Hurðir'!G51 -> 1.663271339
A39: ORKURAMMI ( Tafla 1) | D39: =+E11 -> 204 | E39: Krafa
A40: RAUNTAP GEGNUM HJÚP OG BOTNPLÖTU (Tafla 2) | C40: =+E23 -> 163.0410576
A41: TAP GEGNUM KULDABRÝR (Tafla 3) | C41: =+E37 -> 33.32142857
B42: Tafla 2+3 | C42: =SUM(C40:C41) -> 196.3624861 | D42: Raun
B43: Er Krafa/Raun>1,0 ? | C43: =D39/C42 -> 1.038894974 | D43: =IF(C43>0.995,"Í lagi","Ekki í lagi !") -> Í lagi
A45: Grein 13.2.4 | E45: U- gildi gluggaglerja
A46: Leiðnitap á fermetra gólfs pr. | C46: =C42/N17 -> 0.9818124307 | E46: Fast gler | F46: =I22 -> 1.1
A47: Grein 13.3.2 | E47: Opnanlegt fag | F47: =I24 -> 1.9
A48: Útveggir, vegið meðaltal | C48: =((C17*D17+C18*D18+C20*D20+C21*D21)/(C17+C18+C20+C21)) -> 0.5658533248 | D48: =IF(C48>0.85,"Ekki í lagi !","Í lagi") -> Í lagi

Sheet 3. Þykkt einangrunar
D3: Er einangrunarþykkt vituð? (Já/Nei) | E3: Nei | F3: Taflan reiknar út einangrunarþykkt og U gildi, eða U gildi ef einangrunarþykkt er vituð
D4: Ef Já, hver er einangrunarþykktin (m) ? | E4: ?
D6: Steyptur veggur einangraður að innan
G7: d | H7: λ | I7: R
G8: m | H8: W/mK
D9: Ytra yfirborð | I9: 0.04
D10: Marmarasalli | G10: 0.001 | H10: 3 | I10: =+G10/H10 -> 0.0003333333333
D11: Múrhúð | G11: 0.02 | H11: 1.4 | I11: =+G11/H11 -> 0.01428571429
D12: Járnbent steinsteypa | G12: 0.18 | H12: 1.95 | I12: =+G12/H12 -> 0.09230769231
D13: Frauðplast | G13: =(I19-SUM(I9:I12)-SUM(I14:I15))*H13 -> 0.08588735714 | H13: 0.039 | I13: =IF(E3="Já",E4/H13,G13/H13) -> 2.202239927
D14: Múrhúð | G14: 0.025 | H14: 1.2 | I14: =+G14/H14 -> 0.02083333333
D15: Innra yfirborð | I15: 0.13
D16: Alls (∑R) | I16: =SUM(I9:I15) -> 2.5
D17: U= | I17: =1/I16 -> 0.4
D18: Rstaðall | I18: =1/'2. Orkurammi'!D6 -> 2.5
D19: Rnauðsyn | I19: =1/'2. Orkurammi'!D6-0 -> 2.5
D20: Samtals U | E20: =I17 -> 0.4 | F20: =IF(E20>0.4049,"Ekki í lagi","Í lagi") -> Í lagi
D22: Einangrunarþykkt | F22: =IF(E3="Já",E4*1000,G13*1000) -> 85.88735714 | G22: mm
D42: Er einangrunarþykkt vituð? (Já/Nei) | E42: Nei | F42: Taflan reiknar út einangrunarþykkt og U gildi, eða U gildi ef einangrunarþykkt er vituð
D43: Ef Já, hver er einangrunarþykktin? (m) | E43: ?
D45: Steyptur veggur einangraður að utan
G46: d | H46: λ | I46: R
G47: m | H47: W/mK
D48: Ytra yfirborð | I48: 0.13
D49: Klæðning | G49: 0.02 | H49: 0.16 | I49: -
D50: Loftræst bil (mikið) | G50: 0.02 | I50: -
D51: Steinull, veggplata | G51: =(I66-SUM(I48:I50)-SUM(I52:I55))*H51 -> 0.1222846154 | H51: 0.035 | I51: =IF(E42="Já",E43/H51,G51/H51) -> 3.493846154
D52: Vinklar
D53: Dýflur
D54: Járnbent steinsteypa | G54: 0.18 | H54: 1.95 | I54: =G54/H54 -> 0.09230769231
D55: Innra yfirborð | I55: 0.13
D56: Alls (∑R) | I56: =SUM(I48:I55) -> 3.846153846
D58: U= | I58: =1/I56 -> 0.26
D59: ΔU(Einangrað í heilu lagi) | I59: 0.01
D60: Kólnunartala U | I60: =I58+I59 -> 0.27
D61: Rstaðall= | I61: =1/'2. Orkurammi'!D6 -> 2.5
D62: Punktkuldabrýr:
D63: Vinklar (ΔUf1) | H63: 17 | I63: 0.12
D64: Dýflur (ΔUf2) | H64: 17 | I64: 0.01
D66: Rnauðsyn= | I66: =1/('2. Orkurammi'!D6-(I59+I63+I64)) -> 3.846153846
D67: Samtals U | E67: =I58+I59+I63+I64 -> 0.4 | F67: =IF(E67>0.4049,"Ekki í lagi","Í lagi") -> Í lagi
D69: Einangrunarþykkt | F69: =IF(E42="Já",E43*1000,G51*1000) -> 122.2846154 | G69: mm
D92: Er einangrunarþykkt vituð? (Já/Nei) | E92: Nei | F92: Taflan reiknar út einangrunarþykkt og U gildi, eða U gildi ef einangrunarþykkt er vituð
D93: Ef Já, hver er einangrunarþykktin (m) ? | E93: ?
D95: Létt þak
G96: d | H96: λ | I96: R
G97: m | H97: W/mK
D98: Ytra yfirborð | I98: 0
D99: Klæðning | I99: 0.15
D100: Loftræst loftbil(lítið) | G100: 0.02 | H100: 1.4 | I100: 0.08
D101: Sperrur+einangrun | G101: =(I108-SUM(I98:I100)-SUM(I102:I104))*H101 -> 0.2117014286 | H101: 0.047 | I101: =IF(E92="Já",E93/H101,G101/H101) -> 4.504285714
D102: Loftbil | H102: 0 | I102: 0.08
D103: Loftaklæðning | G103: 0.012 | H103: 0.14 | I103: =+G103/H103 -> 0.08571428571
D104: Innra yfirborð | I104: 0.1
D105: Alls (∑R) | I105: =SUM(I98:I104) -> 5
D106: U= | I106: =1/I105 -> 0.2
D107: Rstaðall | I107: =1/'2. Orkurammi'!D5 -> 5
D108: Rnauðsyn | I108: =1/'2. Orkurammi'!D5-0 -> 5
D109: Samtals U | E109: =I106 -> 0.2 | F109: =IF(E109>0.2049,"Ekki í lagi","Í lagi") -> Í lagi
D111: Einangrunarþykkt | F111: =IF(E92="Já",E93*1000,G101*1000) -> 211.7014286 | G111: mm
D137: Er einangrunarþykkt vituð? (Já/Nei) | E137: Nei | F137: Taflan reiknar út einangrunarþykkt og U gildi, eða U gildi ef einangrunarþykkt er vituð
D138: Ef Já, hver er einangrunarþykktin (m) ? | E138: 0.2
D140: Viðsnúið þak
G141: d | H141: λ | I141: R
G142: m | H142: W/mK
D143: Ytra yfirborð | I143: 0.04
D144: Hellur | G144: 0.05 | H144: 1.4 | I144: =G144/H144 -> 0.03571428571
D145: Sandur | G145: 0.03 | H145: 1.5 | I145: =G145/H145 -> 0.02
D146: Jarðvegsfilt | G146: 0.005 | H146: 0.52 | I146: 0.009615384615
D147: Einangrun (XPS) - Tvö lög | G147: =(I157-SUM(I143:I146)-SUM(I148:I151))*H147 -> 0.2497312454 | H147: 0.034 | I147: =IF(E137="Já",E138/H147,G147/H147) -> 7.34503663
D148: Asfaltpappi - Tvö lög | G148: 0.01 | H148: 0.26 | I148: 0.03846153846
D149: Ílögn | G149: 0.03 | H149: 1.4 | I149: 0.02142857143
D150: Steypt plata (járnbent) | G150: 0.16 | H150: 1.95 | I150: 0.08205128205
D151: Innra yfirborð | I151: 0.1
D152: Alls (∑R) | I152: =SUM(I143:I151) -> 7.692307692
D154: Rstaðall | I154: =1/'2. Orkurammi'!D5 -> 5
D155: U= | I155: =1/I152 -> 0.13
D156: ΔUr | I156: 0.07
D157: Rnauðsyn | I157: =1/('2. Orkurammi'!D5-('3. Þykkt einangrunar'!I156)) -> 7.692307692
D158: Samtals U | E158: =I155+I156 -> 0.2 | F158: =IF(E158>0.2049,"Ekki í lagi","Í lagi") -> Í lagi
D160: Einangrunarþykkt | F160: =IF(E137="Já",E138*1000,G147*1000) -> 249.7312454 | G160: mm
D192: Er einangrunarþykkt vituð? (Já/Nei) | E192: Nei | F192: Taflan reiknar út einangrunarþykkt og U gildi, eða U gildi ef einangrunarþykkt er vituð
D193: Ef Já, hver er einangrunarþykktin (m) ? | E193: ?
D195: Uppstólað þak á steypta plötu
G196: d | H196: λ | I196: R
G197: m | H197: W/mK
D198: Ytra yfirborð
D199: Klæðning + loftbil | I199: 0.3
D200: Uppstólun + steinull | G200: 0.15 | H200: 0.04 | I200: 0
D201: Reim + steinull | F201: =(I208-SUM(I199:I200)-SUM(I202:I204))*H201 -> 0.2205628205 | G201: 0.05 | H201: 0.049 | I201: =IF(E192="Já",E193/H201,F201/H201) -> 4.501282051
D202: Steypt plata (járnbent) | G202: 0.16 | H202: 1.95 | I202: =G202/H202 -> 0.08205128205
D203: Múrhúð | G203: 0.02 | H203: 1.2 | I203: 0.01666666667
D204: Innri yfirborð | I204: 0.1
D205: Alls (∑R) | I205: =SUM(I199:I204) -> 5
D207: Rstaðall | I207: =1/'2. Orkurammi'!D5 -> 5
D208: Rnauðsyn | I208: =1/'2. Orkurammi'!D5-0 -> 5
D209: Samtals U | E209: =1/I205 -> 0.2 | F209: =IF(E209>0.2049,"Ekki í lagi","Í lagi") -> Í lagi
D211: Einangrunarþykkt | F211: =IF(E192="Já",E193*1000,F201*1000) -> 220.5628205 | G211: mm
D212: Ath breyta í 1 lag ???
D213: 0,221 ef lögin eru tekin saman
D245: Er einangrunarþykkt vituð? (Já/Nei) | E245: Nei | F245: Taflan reiknar út einangrunarþykkt og U gildi, eða U gildi ef einangrunarþykkt er vituð
D246: Ef Já, hver er einangrunarþykktin (m) ? | E246: ?
D248: Kalt þak
G249: d | H249: λ | I249: R
G250: m | H250: W/mK
D251: Ytra yfirborð
D252: Pappi - tvö lög | I252: 0.15
D253: Steypt plata (járnbent) | G253: 0.16 | H253: 1.95
D254: Loftræst loftbil (lítið) | G254: 0.2 | I254: 0.08
D255: Steinull - samfelld | F255: =(I263-SUM(I252:I254)-SUM(I257:I259))*H255 -> 0.1756671429 | G255: 0.1 | H255: 0.039 | I255: =IF(E245="Já",E246/H255,F255/H255) -> 4.504285714
D256: Grind - steinull | G256: 0.1 | H256: 0.047 | I256: 0
D257: Loftbil | I257: 0.08
D258: Loftaklæðning (spónaplötur) | G258: 0.012 | H258: 0.14 | I258: =G258/H258 -> 0.08571428571
D259: Innri yfirborð | I259: 0.1
D260: Alls (∑R) | I260: =SUM(I252:I259) -> 5
D261: U= | I261: =1/I260 -> 0.2
D262: Rstaðall | I262: =1/'2. Orkurammi'!D5 -> 5
D263: Rnauðsyn | I263: =1/'2. Orkurammi'!D5-0 -> 5
D264: Samtals U | E264: =I261 -> 0.2 | F264: =IF(E264>0.2049,"Ekki í lagi","Í lagi") -> Í lagi
D266: Einangrunarþykkt | F266: =IF(E245="Já",E246*1000,F255*1000) -> 175.6671429 | G266: mm
D267: Ath breyta í 1 lag ???
D268: 0,176 ef lögin eru tekin saman
D299: Er einangrunarþykkt vituð? (Já/Nei) | E299: Nei | F299: Taflan reiknar út einangrunarþykkt og U gildi, eða U gildi ef einangrunarþykkt er vituð
D300: Ef Já, hver er einangrunarþykktin (m) ? | E300: ?
D302: Léttur veggur
G303: d | H303: λ | I303: R
G304: m | H304: W/mK
D305: Ytra yfirborð
D306: Klæðning | G306: 0.0222 | H306: 0.16 | I306: 0.15
D307: Loftræst bil (lítið) | G307: 0.01 | I307: 0.08
D308: Krossviður | G308: 0.009 | H308: 0.14 | I308: =G308/H308 -> 0.06428571429
D309: Stoðir+einangrun | G309: =(I318-SUM(I306:I308)-SUM(I310:I312))*H309 -> 0.1329961084 | H309: 0.047 | I309: =IF(E299="Já",E300/H309,G309/H309) -> 2.829704433
D310: Loftbil | I310: 0.08
D311: Klæðning (spónaplötur) | G311: 0.016 | H311: 0.14 | I311: =G311/H311 -> 0.1142857143
D312: Innri mótstaða | I312: 0.13
D313: Alls (∑R) | I313: =SUM(I306:I312) -> 3.448275862
D315: Rstaðall | I315: =1/'2. Orkurammi'!D7 -> 3.333333333
D316: U= | I316: =1/I313 -> 0.29
D317: ΔU(Einangrað í heilu lagi) | I317: 0.01
D318: Rnauðsyn | I318: =1/('2. Orkurammi'!D7-('3. Þykkt einangrunar'!I317)) -> 3.448275862
D319: Samtals U | E319: =I316+I317 -> 0.3 | F319: =IF(E319>0.3049,"Ekki í lagi","Í lagi") -> Í lagi
D321: Einangrunarþykkt | F321: =IF(E299="Já",E300*1000,G309*1000) -> 132.9961084 | G321: mm
D353: Er einangrunarþykkt vituð? (Já/Nei) | E353: Nei | F353: Taflan reiknar út einangrunarþykkt og U gildi, eða U gildi ef einangrunarþykkt er vituð
D354: Ef Já, hver er einangrunarþykktin (m) ? | E354: ?
D356: Gólf - Sökkull með innveggjum
G357: d | H357: λ | I357: R
G358: m | H358: W/mK
D359: Ytra yfirborð | I359: 0.17
D360: Parket | G360: 0 | H360: 0.17 | I360: =+G360/H360 -> 0
D361: Gólfplata | G361: 0.1 | H361: 1.95 | I361: =+G361/H361 -> 0.05128205128
D362: Einangrun | G362: =(I370-SUM(I359:I361)-SUM(I363))*H362 -> 0.1444422093 | H362: 0.047 | I362: =IF(E353="Já",E354/H362,G362/H362) -> 3.073238497
D363: Jarðvegur | H363: 0.039 | I363: 1.5
D364: Alls (∑R) | I364: =SUM(I359:I363) -> 4.794520548
D366: U= | I366: =1/I364 -> 0.2085714286
D367: ΔU(Einangrað í heilu lagi) | I367: 0.01
D368: Kólnunartala U | I368: =SUM(I366:I367) -> 0.2185714286
D369: Rstaðall= | I369: =1/'2. Orkurammi'!D19 -> 3.333333333
D370: Rnauðsyn= | I370: =1/('2. Orkurammi'!D8-(I367+I375+I376)) -> 4.794520548
D372: Einangrunarþykkt | F372: =IF(E353="Já",E354*1000,G362*1000) -> 144.4422093 | G372: mm
D374: Línukuldabrýr: | E374: L (m) | F374: ψ(W/mK) | G374: L.itap W/K | I374: ΔT=15
D375: Kuldabrú útveggir | E375: 60 | F375: 0.48 | G375: =+E375*F375 -> 28.8 | H375: =+G375/'2. Orkurammi'!$C$19 -> 0.144 | I375: =+H375*15/35 -> 0.06171428571
D376: Kuldabrú innveggir | E376: 20 | F376: 0.46 | G376: =+E376*F376 -> 9.2 | H376: =+G376/'2. Orkurammi'!$C$19 -> 0.046 | I376: =+H376*15/35 -> 0.01971428571
D378: Samtals U | E378: =+I376+I375+I368 -> 0.3 | F378: =IF(E378>0.3049,"Ekki í lagi","Í lagi") -> Í lagi
D410: Er einangrunarþykkt vituð? (Já/Nei) | E410: Nei | F410: Taflan reiknar út einangrunarþykkt og U gildi, eða U gildi ef einangrunarþykkt er vituð
D411: Ef Já, hver er einangrunarþykktin (m) ? | E411: ?
D413: Steypt gólf með gólfgeisla
G414: d | H414: λ | I414: R
G415: m | H415: W/mK
D416: Innra yfirborð
D417: Gólfefni + ílögn m/gólflögnum | G417: =0.035 -> 0.035 | H417: 1.2
D418: Gólfplata | G418: 0.1 | H418: 1.95 | I418: =G418/H418 -> 0.05128205128
D419: Frauðplasteinangrun | G419: =(I426-SUM(I417:I418)-SUM(I420))*H419 -> 0.07398275862 | H419: 0.039 | I419: =IF(E410="Já",E411/H419,G419/H419) -> 1.896993811
D420: Jarðvegur | I420: 1.5
D421: Alls (∑R) | I421: =SUM(I417:I420) -> 3.448275862
D423: Rstaðall | I423: =1/'2. Orkurammi'!D8 -> 3.333333333
D424: U= | I424: =1/I421 -> 0.29
D425: ΔU(Einangrað í heilu lagi) | I425: 0.01
D426: Rnauðsyn | I426: =1/('2. Orkurammi'!D8-I425) -> 3.448275862
D427: Samtals U | E427: =I424+I425 -> 0.3 | F427: =IF(E427>0.3049,"Ekki í lagi","Í lagi") -> Í lagi
D429: Einangrunarþykkt | F429: =IF(E410="Já",E411*1000,G419*1000) -> 73.98275862 | G429: mm
D465: Er einangrunarþykkt vituð? (Já/Nei) | E465: Nei | F465: Taflan reiknar út einangrunarþykkt og U gildi, eða U gildi ef einangrunarþykkt er vituð
D466: Ef Já, hver er einangrunarþykktin (m) ? | E466: ?
D468: Steypt gólf með gólfgeisla (Tvöföld einangrun)
G469: d | H469: λ | I469: R
G470: m | H470: W/mK
D471: Innra yfirborð
D472: Gólfefni + Anhydrit ílögn m/gólflögnum | G472: 0.03 | H472: 1.2
D473: Frauðplasteinangrun | G473: 0.025 | H473: 0.039 | I473: =G473/H473 -> 0.641025641
D474: Gólfplata | G474: 0.1 | H474: 1.95 | I474: =G474/H474 -> 0.05128205128
D475: Frauðplasteinangrun | G475: =(I481-SUM(I472:I474)-SUM(I476))*H475 -> 0.0445 | H475: 0.039 | I475: =IF(E465="Já",E466/H475,G475/H475) -> 1.141025641
D476: Jarðvegur | I476: 1.5
D477: Alls (∑R) | I477: =SUM(I471:I476) -> 3.333333333
D479: Rstaðall | I479: =1/'2. Orkurammi'!D8 -> 3.333333333
D480: U= | I480: =1/I477 -> 0.3
D481: Rnauðsyn | I481: =1/('2. Orkurammi'!D8-0) -> 3.333333333
D482: Samtals U | E482: =I480 -> 0.3 | F482: =IF(E482>0.3049,"Ekki í lagi","Í lagi") -> Í lagi
D484: Einangrunarþykkt | F484: =IF(E465="Já",E466*1000,G475*1000) -> 44.5 | G484: mm
D485: ATH þykkt
D486: Ath hvort rétt sé að nota 0,039
D515: Þak
... 53 more rows

Sheet 4. Hiti á efnisskilum (hidden)
B2: Steyptur veggur einangraður að innan - Hitastig á efnisskilum | AA2: Steyptur veggur einangraður að utan - Hitastig á efnisskilum
C3: d | D3: λ | E3: R | F3: ΔT | G3: T | AB3: d | AC3: λ | AD3: R | AE3: ΔT | AF3: T
C4: m | D4: W/mK | F4: °C | G4: °C | AB4: m | AC4: W/mK | AE4: °C | AF4: °C
B5: Hitastig úti | G5: -15 | AA5: Hitastig úti | AF5: -15
B7: Ytra yfirborð | E7: ='3. Þykkt einangrunar'!I9 -> 0.04 | F7: =E7/$E$22*(G$5-$G$21) -> -0.56 | AA7: Ytra yfirborð | AD7: ='3. Þykkt einangrunar'!I48 -> 0.13 | AE7: =AD7/$AD$20*($AF$5-$AF$19) -> -1.183
G8: =G5-F7 -> -14.44 | AF8: =AF5-AE7 -> -13.817
B9: Marmarasalli | C9: ='3. Þykkt einangrunar'!G10 -> 0.001 | D9: ='3. Þykkt einangrunar'!H10 -> 3 | E9: =+C9/D9 -> 0.0003333333333 | F9: =E9/$E$22*(G$5-$G$21) -> -0.004666666667 | AA9: Klæðning | AB9: ='3. Þykkt einangrunar'!G49 -> 0.02 | AC9: ='3. Þykkt einangrunar'!H49 -> 0.16 | AE9: =AD9/$AD$20*($AF$5-$AF$19) -> 0
G10: =G8-F9 -> -14.43533333 | AF10: =AF8-AE9 -> -13.817
B11: Múrhúð | C11: ='3. Þykkt einangrunar'!G11 -> 0.02 | D11: ='3. Þykkt einangrunar'!H11 -> 1.4 | E11: =+C11/D11 -> 0.01428571429 | F11: =E11/$E$22*(G$5-$G$21) -> -0.2 | AA11: Loftræst bil (mikið) | AB11: ='3. Þykkt einangrunar'!G50 -> 0.02 | AE11: 0
G12: =G10-F11 -> -14.23533333 | AF12: =AF10-AE11 -> -13.817
B13: Járnbent steinsteypa | C13: ='3. Þykkt einangrunar'!G12 -> 0.18 | D13: ='3. Þykkt einangrunar'!H12 -> 1.95 | E13: =+C13/D13 -> 0.09230769231 | F13: =E13/$E$22*(G$5-$G$21) -> -1.292307692 | AA13: Steinull, veggplata | AB13: =IF('3. Þykkt einangrunar'!E42="Nei",'3. Þykkt einangrunar'!G51,'3. Þykkt einangrunar'!E43) -> 0.1222846154 | AC13: ='3. Þykkt einangrunar'!H51 -> 0.035 | AD13: =AB13/AC13 -> 3.493846154 | AE13: -31.794
G14: =G12-F13 -> -12.94302564 | AF14: =AF12-AE13 -> 17.977
B15: Frauðplast | C15: =IF('3. Þykkt einangrunar'!E3="Nei",'3. Þykkt einangrunar'!G13,'3. Þykkt einangrunar'!E4) -> 0.08588735714 | D15: ='3. Þykkt einangrunar'!H13 -> 0.039 | E15: =+C15/D15 -> 2.202239927 | F15: =E15/$E$22*(G$5-$G$21) -> -30.83135897 | AA15: Járnbent steinsteypa | AB15: ='3. Þykkt einangrunar'!G54 -> 0.18 | AC15: ='3. Þykkt einangrunar'!H54 -> 1.95 | AD15: =AB15/AC15 -> 0.09230769231 | AE15: -0.84
G16: =G14-F15 -> 17.88833333 | AF16: =AF14-AE15 -> 18.817
B17: Múrhúð | C17: ='3. Þykkt einangrunar'!G14 -> 0.025 | D17: ='3. Þykkt einangrunar'!H14 -> 1.2 | E17: =+C17/D17 -> 0.02083333333 | F17: =E17/$E$22*(G$5-$G$21) -> -0.2916666667 | AA17: Innra yfirborð | AD17: ='3. Þykkt einangrunar'!I55 -> 0.13 | AE17: -1.183
G18: =G16-F17 -> 18.18
B19: Innra yfirborð | E19: ='3. Þykkt einangrunar'!I15 -> 0.13 | F19: =E19/$E$22*(G$5-$G$21) -> -1.82 | AA19: Hitastig inni | AF19: 20
AD20: =SUM(AD5:AD18) -> 3.846153846 | AE20: =SUM(AE5:AE19) -> -35
B21: Hitastig inni | G21: 20
E22: =SUM(E5:E21) -> 2.5 | F22: =SUM(F5:F21) -> -35
B57: Steypt gólfpl. með gólfg. og grófm. (Einangrað í tveimur lögum) - Hitastig á efnisskilum | AA57: Steypt gólfpl. með gólfg. og grófm. (Einangrað í heilu lagi) - Hitastig á efnisskilum
C58: d | D58: λ | E58: R | F58: ΔT | G58: T | AB58: d | AC58: λ | AD58: R | AE58: ΔT | AF58: T
C59: m | D59: W/mK | F59: °C | G59: °C | AB59: m | AC59: W/mK | AE59: °C | AF59: °C
B60: Hitastig inni v/gólfgeisla | G60: 30 | AA60: Hitastig inni v/gólfgeisla | AF60: 30
B62: Innra yfirborð | AA62: Innra yfirborð
G63: =G60-F62 -> 30 | AF63: =AF60-AE62 -> 30
B64: Gólfefni + Anhydrit ílögn m/gólflögnum | C64: ='3. Þykkt einangrunar'!G472 -> 0.03 | D64: ='3. Þykkt einangrunar'!H472 -> 1.2 | AA64: Gólfefni +ílögn m/gólflögnum | AB64: ='3. Þykkt einangrunar'!G417 -> 0.035 | AC64: ='3. Þykkt einangrunar'!H417 -> 1.2
G65: =G63-F64 -> 30 | AF65: =AF63-AE64 -> 30
B66: Frauðplasteinangrun | C66: ='3. Þykkt einangrunar'!G473 -> 0.025 | D66: ='3. Þykkt einangrunar'!H473 -> 0.039 | E66: =C66/D66 -> 0.641025641 | F66: =(E66/$E$75)*($G$60-$G$74) -> 4.807692308 | AA66: Gólfplata | AB66: ='3. Þykkt einangrunar'!G418 -> 0.1 | AC66: ='3. Þykkt einangrunar'!H418 -> 1.95 | AD66: =AB66/AC66 -> 0.05128205128 | AE66: =(AD66/$AD$73)*($AF$60-$AF$72) -> 0.3717948718
G67: =G65-F66 -> 25.19230769 | AF67: =AF65-AE66 -> 29.62820513
B68: Gólfplata | C68: ='3. Þykkt einangrunar'!G474 -> 0.1 | D68: ='3. Þykkt einangrunar'!H474 -> 1.95 | E68: =C68/D68 -> 0.05128205128 | F68: =(E68/$E$75)*($G$60-$G$74) -> 0.3846153846 | AA68: Frauðplasteinangrun | AB68: =IF('3. Þykkt einangrunar'!E410="Nei",'3. Þykkt einangrunar'!G419,'3. Þykkt einangrunar'!E411) -> 0.07398275862 | AC68: ='3. Þykkt einangrunar'!H419 -> 0.039 | AD68: =AB68/AC68 -> 1.896993811 | AE68: =(AD68/$AD$73)*($AF$60-$AF$72) -> 13.75320513
G69: =G67-F68 -> 24.80769231 | AF69: =AF67-AE68 -> 15.875
B70: Frauðplasteinangrun | C70: =IF('3. Þykkt einangrunar'!E465="Nei",'3. Þykkt einangrunar'!G475,'3. Þykkt einangrunar'!E466) -> 0.0445 | D70: ='3. Þykkt einangrunar'!H475 -> 0.039 | E70: =C70/D70 -> 1.141025641 | F70: =(E70/$E$75)*($G$60-$G$74) -> 8.557692308 | AA70: Jarðvegur | AD70: ='3. Þykkt einangrunar'!I420 -> 1.5 | AE70: 10.875
G71: =G69-F70 -> 16.25
B72: Jarðvegur | E72: 1.5 | F72: =(E72/$E$75)*($G$60-$G$74) -> 11.25 | AA72: Hitastig jörð | AF72: 5
AD73: =SUM(AD61:AD72) -> 3.448275862 | AE73: =SUM(AE60:AE72) -> 25
B74: Hitastig jörð | G74: 5
E75: =SUM(E60:E74) -> 3.333333333 | F75: =SUM(F60:F74) -> 25

Sheet 5. Gluggar&Hurðir
A1: Gluggar og hurðir
B4: Tafla 1
B5: Inntaksstærðir | C5: mm
B6: Falsdýpt | C6: 22
B7: Karmbreidd | C7: 62
B8: Póstabreidd | C8: 75
B9: Opnanlegt fag | C9: 75
B10: Hurðarstykki hlið, ofan og milli | C10: 120
B11: Hurðarstykki neðan | C11: 200
B13: Tafla 2
B14: Gluggi / Hurð | C14: Múrmál | F14: Karmlengd | H14: Póstalengd | K14: Fast gler (ljósmál) | T14: Opnanlegt fag / hurð | AB14: Gler | AG14: Spjöld | AL14: Samtals
C15: b [mm] | D15: h [mm] | E15: A [m2] | F15: Lk [mm] | G15: ψ (W/mK) | H15: Lp [mm] | I15: ψ (W/mK) | J15: (A*U)k [W/K] | K15: b1 [mm] | L15: h1 [mm] | M15: b2 [mm] | N15: h2 [mm] | O15: b3 [mm] | P15: h3 [mm] | Q15: Ag [m2] | R15: Ug [W/m2K) | S15: (A*U)g [W/K] | T15: Fjöldi | U15: bf [mm] | V15: hf [mm] | W15: Ummál [mm] | X15: Afag [m2] | Y15: Ufag [W/m2K] | Z15: ψfag [W/mK] | AA15: (A*U)fag | AB15: bog [mm] | AC15: hog [mm] | AD15: Aog [m2] | AE15: Uog [W/m2K] | AF15: (A*U)og [W/K] | AG15: bs [mm] | AH15: hs [mm] | AI15: As [m2] | AJ15: Us [W/m2K] | AK15: (A*U)s [W/K] | AL15: Agler [m2] | AM15: A*U [W/K] | AN15: Uvegið [W/m2K] | AO15: Glerhlutfall
A16: Gluggar
A17: G1 | B17: Stofa | C17: 2900 | D17: 1800 | E17: =(C17/1000)*(D17/1000) -> 5.22 | F17: =2*((C17-$C$7)+(D17-$C$7)) -> 9152 | G17: 0.26 | H17: =2*(D17-2*$C$7)+2*(560-$C$7-0.5*$C$8) -> 4273 | I17: =2*0.089 -> 0.178 | J17: =(F17/1000)*G17+(H17/1000)*I17 -> 3.140114 | K17: =560-$C$7-0.5*$C$8 -> 460.5 | L17: =415-$C$7-0.5*$C$8 -> 315.5 | M17: =C17-2*(560+0.5*$C$8) -> 1705 | N17: =D17-2*$C$7 -> 1676 | O17: =K17 -> 460.5 | P17: =L17 -> 315.5 | Q17: =((K17*L17+M17*N17+O17*P17)/(1000000)) -> 3.1481555 | R17: =IF('2. Orkurammi'!$H$22="Annað",'2. Orkurammi'!$J$22,'2. Orkurammi'!$I$22) -> 1.1 | S17: =Q17*R17 -> 3.46297105 | T17: 2 | U17: =560-($C$7-$C$6)-(0.5*$C$8-$C$6) -> 504.5 | V17: =(D17-415-($C$7-$C$6)-(0.5*$C$8-$C$6)) -> 1329.5 | W17: =2*(U17-$C$9+V17-$C$9) -> 3368 | X17: =((T17*U17*V17)/(1000000)) -> 1.3414655 | AA17: =(W17/1000)*Z17+X17*Y17 -> 0 | AB17: =U17-2*$C$9 -> 354.5 | AC17: =V17-2*$C$9 -> 1179.5 | AD17: =T17*(AB17*AC17)/1000000 -> 0.8362655 | AE17: =IF('2. Orkurammi'!$H$24="Annað",'2. Orkurammi'!$J$24,'2. Orkurammi'!$I$24) -> 1.9 | AF17: =AD17*AE17 -> 1.58890445 | AK17: =AI17*AJ17 -> 0 | AL17: =Q17+AD17 -> 3.984421 | AM17: =J17+S17+AA17+AF17+AK17 -> 8.1919895 | AN17: =AM17/E17 -> 1.569346648 | AO17: =AL17/E17 -> 0.7632990421
A18: G2,G3 | B18: Stofa | C18: 2000 | D18: 1800 | E18: 3.6 | F18: 7352 | G18: 0.26 | H18: =(D18-2*$C$7)+(560-$C$7-0.5*$C$8) -> 2136.5 | I18: =2*0.089 -> 0.178 | J18: =(F18/1000)*G18+(H18/1000)*I18 -> 2.291817 | K18: =560-$C$7-0.5*$C$8 -> 460.5 | L18: =415-$C$7-0.5*$C$8 -> 315.5 | M18: =C18-(560+0.5*$C$8) -> 1402.5 | N18: =D18-2*$C$7 -> 1676 | Q18: =((K18*L18+M18*N18+O18*P18)/(1000000)) -> 2.49587775 | R18: =IF('2. Orkurammi'!$H$22="Annað",'2. Orkurammi'!$J$22,'2. Orkurammi'!$I$22) -> 1.1 | S18: =Q18*R18 -> 2.745465525 | T18: 1 | U18: =560-($C$7-$C$6)-(0.5*$C$8-$C$6) -> 504.5 | V18: =(D18-415-($C$7-$C$6)-(0.5*$C$8-$C$6)) -> 1329.5 | W18: 3368 | X18: 0.67073275 | AA18: =(W18/1000)*Z18+X18*Y18 -> 0 | AB18: =U18-2*$C$9 -> 354.5 | AC18: =V18-2*$C$9 -> 1179.5 | AD18: =T18*(AB18*AC18)/1000000 -> 0.41813275 | AE18: =IF('2. Orkurammi'!$H$24="Annað",'2. Orkurammi'!$J$24,'2. Orkurammi'!$I$24) -> 1.9 | AF18: =AD18*AE18 -> 0.794452225 | AK18: =AI18*AJ18 -> 0 | AL18: =Q18+AD18 -> 2.9140105 | AM18: =J18+S18+AA18+AF18+AK18 -> 5.83173475 | AN18: =AM18/E18 -> 1.619926319 | AO18: =AL18/E18 -> 0.8094473611
A19: G4 | B19: Eldhús | C19: 900 | D19: 1200 | E19: 1.08 | F19: 3952 | G19: 0.26 | H19: 0 | I19: =2*0.089 -> 0.178 | J19: 1.02752 | R19: =IF('2. Orkurammi'!$H$22="Annað",'2. Orkurammi'!$J$22,'2. Orkurammi'!$I$22) -> 1.1 | S19: =Q19*R19 -> 0 | T19: 1 | U19: =C19-2*($C$7-$C$6) -> 820 | V19: =D19-2*($C$7-$C$6) -> 1120 | W19: 3580 | X19: 0.9184 | AA19: 0 | AB19: =U19-2*$C$9 -> 670 | AC19: =V19-2*$C$9 -> 970 | AD19: =T19*(AB19*AC19)/1000000 -> 0.6499 | AE19: =IF('2. Orkurammi'!$H$24="Annað",'2. Orkurammi'!$J$24,'2. Orkurammi'!$I$24) -> 1.9 | AF19: =AD19*AE19 -> 1.23481 | AK19: 0 | AL19: =Q19+AD19 -> 0.6499 | AM19: 2.26233 | AN19: =AM19/E19 -> 2.09475 | AO19: =AL19/E19 -> 0.6017592593
A20: G5 | B20: Svefnherbergi | C20: 1900 | D20: 1200 | E20: 2.28 | F20: 5952 | G20: 0.26 | H20: =D20-2*$C$7 -> 1076 | I20: =2*0.089 -> 0.178 | J20: 1.739048 | K20: =C20-(585+0.5*$C$9) -> 1277.5 | L20: =D20-2*$C$7 -> 1076 | Q20: =((K20*L20+M20*N20+O20*P20)/(1000000)) -> 1.37459 | R20: =IF('2. Orkurammi'!$H$22="Annað",'2. Orkurammi'!$J$22,'2. Orkurammi'!$I$22) -> 1.1 | S20: =Q20*R20 -> 1.512049 | T20: 1 | U20: =585-($C$7-$C$6)-(0.5*$C$8-$C$6) -> 529.5 | V20: =D20-2*($C$7-$C$6) -> 1120 | W20: 2999 | X20: 0.59304 | AA20: 0 | AB20: 379.5 | AC20: 970 | AD20: 0.368115 | AE20: =IF('2. Orkurammi'!$H$24="Annað",'2. Orkurammi'!$J$24,'2. Orkurammi'!$I$24) -> 1.9 | AF20: 0.6994185 | AK20: 0 | AL20: 1.742705 | AM20: 3.9505155 | AN20: 1.732682237 | AO20: 0.7643442982
A21: G6,G7 | B21: Svefnherbergi | C21: 1250 | D21: 1200 | E21: 1.5 | F21: 4652 | G21: 0.26 | H21: =D21-2*$C$7 -> 1076 | I21: 0.178 | J21: 1.401048 | K21: =C21-(585+0.5*$C$9) -> 627.5 | L21: =D21-2*$C$7 -> 1076 | Q21: 0.67519 | R21: =IF('2. Orkurammi'!$H$22="Annað",'2. Orkurammi'!$J$22,'2. Orkurammi'!$I$22) -> 1.1 | S21: =Q21*R21 -> 0.742709 | T21: 1 | U21: =585-($C$7-$C$6)-(0.5*$C$8-$C$6) -> 529.5 | V21: =D21-2*($C$7-$C$6) -> 1120 | W21: 2999 | X21: 0.59304 | AB21: =U21-2*$C$9 -> 379.5 | AC21: =V21-2*$C$9 -> 970 | AD21: =T21*(AB21*AC21)/1000000 -> 0.368115 | AE21: =IF('2. Orkurammi'!$H$24="Annað",'2. Orkurammi'!$J$24,'2. Orkurammi'!$I$24) -> 1.9 | AF21: 0.6994185 | AL21: 1.043305 | AM21: 2.8431755 | AN21: 1.895450333 | AO21: 0.6955366667
A22: G8 | B22: Baðherbergi | C22: 700 | D22: 700 | E22: 0.49 | F22: 2552 | G22: 0.26 | H22: 0 | I22: 0.178 | J22: 0.66352 | R22: =IF('2. Orkurammi'!$H$22="Annað",'2. Orkurammi'!$J$22,'2. Orkurammi'!$I$22) -> 1.1 | T22: 1 | U22: =C22-2*($C$7-$C$6) -> 620 | V22: =D22-2*($C$7-$C$6) -> 620 | W22: 2180 | X22: 0.3844 | AA22: 0 | AB22: 470 | AC22: 470 | AD22: 0.2209 | AE22: =IF('2. Orkurammi'!$H$24="Annað",'2. Orkurammi'!$J$24,'2. Orkurammi'!$I$24) -> 1.9 | AF22: 0.41971 | AK22: 0 | AL22: 0.2209 | AM22: 1.08323 | AN22: 2.210673469 | AO22: 0.4508163265
A23: G9 | B23: …. | G23: 0.26 | I23: 0.178 | J23: 0 | R23: =IF('2. Orkurammi'!$H$22="Annað",'2. Orkurammi'!$J$22,'2. Orkurammi'!$I$22) -> 1.1 | AA23: 0 | AE23: =IF('2. Orkurammi'!$H$24="Annað",'2. Orkurammi'!$J$24,'2. Orkurammi'!$I$24) -> 1.9 | AF23: 0 | AK23: 0
A24: G10 | B24: …. | G24: 0.26 | I24: 0.178 | J24: 0 | R24: =IF('2. Orkurammi'!$H$22="Annað",'2. Orkurammi'!$J$22,'2. Orkurammi'!$I$22) -> 1.1 | AA24: 0 | AE24: =IF('2. Orkurammi'!$H$24="Annað",'2. Orkurammi'!$J$24,'2. Orkurammi'!$I$24) -> 1.9 | AF24: 0 | AK24: 0
A25: Hurðir
A26: H1 | B26: Svefnherbergi | G26: 0.26 | J26: 0 | T26: 1 | AA26: 0 | AF26: 0 | AI26: =T26*(AG26*AH26)/1000000 -> 0 | AK26: 0 | AL26: =Q26+AD26 -> 0 | AM26: =J26+S26+AA26+AF26+AK26 -> 0
A27: H2 | B27: Svefnherbergi | G27: 0.26 | J27: 0 | T27: 1 | AA27: 0 | AF27: 0 | AI27: =T27*(AG27*AH27)/1000000 -> 0 | AK27: 0 | AL27: 0 | AM27: =J27+S27+AA27+AF27+AK27 -> 0
A28: H3 | B28: Baðherbergi | G28: 0.26 | J28: 0 | T28: 1 | AA28: 0 | AF28: 0 | AI28: 0 | AK28: 0 | AL28: 0 | AM28: 0
A29: H4 | B29: Svalahurð | C29: 900 | D29: 2050 | E29: =(C29/1000)*(D29/1000) -> 1.845 | F29: =2*((C29-$C$7)+(D29-$C$7)) -> 5652 | G29: 0.26 | J29: 1.46952 | T29: 1 | U29: =C29-2*($C$7-$C$6) -> 820 | V29: =D29-2*($C$7-$C$6) -> 1970 | W29: =2*(U29-$C$10+V29-$C$11) -> 4940 | X29: =((T29*U29*V29)/(1000000)) -> 1.6154 | AA29: 0 | AB29: =U29-2*$C$10 -> 580 | AC29: =V29-$C$10-$C$11 -> 1650 | AD29: =T29*(AB29*AC29)/1000000 -> 0.957 | AE29: =IF('2. Orkurammi'!$H$24="Annað",'2. Orkurammi'!$J$24,'2. Orkurammi'!$I$24) -> 1.9 | AF29: 1.8183 | AI29: 0 | AK29: 0 | AL29: 0.957 | AM29: 3.28782 | AN29: =AM29/E29 -> 1.78201626 | AO29: =AL29/E29 -> 0.518699187
A30: H5 | B30: Aðalhurð | C30: 1030 | D30: 2150 | E30: =(C30/1000)*(D30/1000) -> 2.2145 | F30: =2*((C30-$C$7)+(D30-$C$7)) -> 6112 | G30: 0.26 | H30: 0 | J30: 1.58912 | T30: 1 | U30: =C30-2*($C$7-$C$6) -> 950 | V30: =D30-2*($C$7-$C$6) -> 2070 | W30: =2*(U30-$C$10+V30-$C$11) -> 5400 | X30: =((T30*U30*V30)/(1000000)) -> 1.9665 | AA30: 0 | AB30: =U30-2*$C$10 -> 710 | AC30: 1390 | AD30: 0.9869 | AE30: =IF('2. Orkurammi'!$H$24="Annað",'2. Orkurammi'!$J$24,'2. Orkurammi'!$I$24) -> 1.9 | AF30: 1.87511 | AI30: 0 | AK30: 0 | AL30: 0.9869 | AM30: 3.46423 | AN30: 1.56433958 | AO30: 0.4456536464
A31: H6 | B31: …. | G31: 0.26 | J31: 0 | T31: 1 | AA31: 0 | AF31: 0 | AI31: 0 | AK31: 0 | AL31: 0 | AM31: 0
A32: H7 | B32: …. | G32: 0.26 | J32: 0 | T32: 1 | AA32: 0 | AF32: 0 | AI32: 0 | AK32: 0 | AL32: 0 | AM32: 0
B34: Tafla 3
B35: Vegið meðaltal glugga og hurða
B36: Gluggi | C36: Fjöldi | D36: Múrmál [m2] | E36: Glerflm [m2] | F36: ∑A*U | G36: ∑U
B37: =A17 -> G1 | C37: 1 | D37: =C37*E17 -> 5.22 | E37: =C37*AL17 -> 3.984421 | F37: =C37*AM17 -> 8.1919895 | G37: =C37*AN17 -> 1.569346648
B38: =A18 -> G2,G3 | C38: 2 | D38: 7.2 | E38: 5.828021 | F38: =C38*AM18 -> 11.6634695 | G38: 3.239852639
B39: =A19 -> G4 | C39: 1 | D39: 1.08 | E39: 0.6499 | F39: 2.26233 | G39: 2.09475
B40: =A20 -> G5 | C40: 1 | D40: 2.28 | E40: 1.742705 | F40: 3.9505155 | G40: 1.732682237
B41: G6,G7 | C41: 2 | D41: 3 | E41: 2.08661 | F41: 5.686351 | G41: 3.790900667
B42: G8 | C42: 1 | D42: 0.49 | E42: 0.2209 | F42: 1.08323 | G42: 2.210673469
C43: =SUM(C37:C42) -> 8 | D43: =SUM(D37:D42) -> 19.27 | F43: Uvegið | G43: =SUM(F37:F42)/D43 -> 1.704093695
B45: Hurð | C45: Fjöldi | D45: Múrmál [m2] | E45: Glerflm [m2] | F45: ∑A*U | G45: ∑U
B46: H1 | C46: 0 | D46: =C46*E26 -> 0 | E46: =C46*AL26 -> 0 | F46: =C46*AM26 -> 0 | G46: =C46*AN26 -> 0
B47: H2 | C47: 0 | D47: =C47*E27 -> 0 | E47: =C47*AL27 -> 0 | F47: =C47*AM27 -> 0 | G47: =C47*AN27 -> 0
B48: H3 | C48: 0 | D48: =C48*E28 -> 0 | E48: =C48*AL28 -> 0 | F48: =C48*AM28 -> 0 | G48: =C48*AN28 -> 0
B49: H4 | C49: 1 | D49: =C49*E29 -> 1.845 | E49: =C49*AL29 -> 0.957 | F49: =C49*AM29 -> 3.28782 | G49: =IF('2. Orkurammi'!$H$36="Annað",'2. Orkurammi'!$J$36,'2. Orkurammi'!$I$36) -> 1.78201626
B50: H5 | C50: 1 | D50: =C50*E30 -> 2.2145 | E50: =C50*AL30 -> 0.9869 | F50: =C50*AM30 -> 3.46423 | G50: =IF('2. Orkurammi'!$H$34="Annað",'2. Orkurammi'!$J$34,'2. Orkurammi'!$I$34) -> 1.56433958
C51: =SUM(C46:C50) -> 2 | D51: =SUM(D46:D50) -> 4.0595 | F51: Uvegið | G51: =((G49*D49+G50*D50)/(D49+D50)) -> 1.663271339

Sheet 6. Orkubúskapur
A1: Mat á afl- og varmaþörf byggingar | H1: Veljið stað á landinu | M1: Tafla 4 Varmaþörf á mánaðargrundvelli
H2: Reykjavík | I2: Áætluð varmaþörf (gögn frá 2012)
A3: Tafla 1 Heildarvarmaleiðnitap | H3: Ársmeðalhiti | I3: ='10. Veðurgögn'!B32 -> 5.6 | J3: °C
A4: Byggingarhluti | B4: U [W/m2K] | C4: A [m2] | D4: U*A [W/K] | E4: Δt [K] | F4: Ф [W] | H4: Mánuður | I4: Gráðutímar | J4: Varmaþörf [kWh/mán] | K4: Mánuður | L4: Gráðutímar | M4: Varmaþörf [kWh/mán]
A5: Þak | B5: ='2. Orkurammi'!D16 -> 0.2 | C5: ='2. Orkurammi'!C16 -> 200 | D5: =B5*C5 -> 40 | E5: 35 | F5: =D5*E5 -> 1400 | H5: Janúar | I5: ='10. Veðurgögn'!B18 -> 14554.6 | J5: =I5*($B$24+$B$34)*0.001 -> 4837.403041 | K5: Júlí | L5: ='10. Veðurgögn'!H18 -> 5644 | M5: =L5*($B$24+$B$34)*0.001 -> 1875.853872
A6: Steyptir veggir | B6: ='2. Orkurammi'!D17 -> 0.4 | C6: ='2. Orkurammi'!C17 -> 150 | D6: =B6*C6 -> 60 | E6: 35 | F6: =D6*E6 -> 2100 | H6: Febrúar | I6: ='10. Veðurgögn'!C18 -> 12138.8 | J6: 4034.481747 | K6: Ágúst | L6: ='10. Veðurgögn'!I18 -> 5691.4 | M6: 1891.607854
A7: Léttir veggir | B7: ='2. Orkurammi'!D18 -> 0.3 | C7: ='2. Orkurammi'!C18 -> 0 | D7: 0 | E7: 35 | F7: 0 | H7: Mars | I7: ='10. Veðurgögn'!D18 -> 12618.2 | J7: 4193.816323 | K7: September | L7: ='10. Veðurgögn'!J18 -> 9099.2 | M7: 3024.232734
A8: Gólf | B8: ='2. Orkurammi'!D19 -> 0.3 | C8: ='2. Orkurammi'!C19 -> 200 | D8: ='2. Orkurammi'!E19 -> 25.71428571 | E8: 35 | F8: 900 | H8: Apríl | I8: ='10. Veðurgögn'!E18 -> 11278 | J8: 3748.384119 | K8: Október | L8: ='10. Veðurgögn'!K18 -> 11550.8 | M8: 3839.052605
A9: Gluggar | B9: ='2. Orkurammi'!D20 -> 1.704093695 | C9: ='2. Orkurammi'!C20 -> 18 | D9: 30.67368651 | E9: 35 | F9: 1073.579028 | H9: Maí | I9: ='10. Veðurgögn'!F18 -> 10167.1 | J9: 3379.162633 | K9: Nóvember | L9: ='10. Veðurgögn'!L18 -> 13304.5 | M9: 4421.916697
A10: Hurðir | B10: ='2. Orkurammi'!D21 -> 1.663271339 | C10: ='2. Orkurammi'!C21 -> 4 | D10: 6.653085355 | E10: 35 | F10: 232.8579874 | H10: Júní | I10: ='10. Veðurgögn'!G18 -> 6702.6 | J10: 2227.6928 | K10: Desember | L10: ='10. Veðurgögn'!M18 -> 13861.8 | M10: 4607.14231
A11: Heild byggingarhluta | D11: =SUM(D5:D10) -> 163.0410576 | F11: =SUM(F5:F10) -> 5706.437015 | H11: Heild | I11: =SUM(I5:I10)+SUM(L5:L10) -> 126611 | J11: °Ch/ár | L11: =SUM(J5:J10)+SUM(M5:M10) -> 42080.74673 | M11: kWh/ár
A12: Kuldabrýr | B12: ψ [W/mK] | C12: l [m] | D12: ψ·L (W/K) | E12: Δt [K] | F12: Ф [W]
A13: Lóðréttar kuldabrýr við úthorn | B13: ='2. Orkurammi'!D27 -> 0.04 | C13: ='2. Orkurammi'!C27 -> 12 | D13: =B13*C13 -> 0.48 | E13: 35 | F13: =D13*E13 -> 16.8
A14: Láréttar kuldabrýr við plötuskil | B14: ='2. Orkurammi'!D28 -> 0.83 | C14: ='2. Orkurammi'!C28 -> 0 | D14: =B14*C14 -> 0 | E14: 35 | F14: =D14*E14 -> 0
A15: Lóðréttar kuldabrýr við útvegg/innvegg | B15: ='2. Orkurammi'!D29 -> 0.83 | C15: ='2. Orkurammi'!C29 -> 9 | D15: 7.47 | E15: 35 | F15: 261.45
A16: Kuldabrýr við svalir | B16: ='2. Orkurammi'!D30 -> 0.83 | C16: ='2. Orkurammi'!C30 -> 0 | D16: 0 | E16: 35 | F16: 0
A17: Kuldabrýr útistigi-útveggur | B17: ='2. Orkurammi'!D31 -> 0.6 | C17: ='2. Orkurammi'!C31 -> 0 | D17: 0 | E17: 35 | F17: 0
A18: Kuldabrýr við glugga | B18: ='2. Orkurammi'!D32 -> 0.04 | C18: ='2. Orkurammi'!C32 -> 20 | D18: 0.8 | E18: 35 | F18: 28
A19: Kuldabrýr við hurðir | B19: ='2. Orkurammi'!D33 -> 0.04 | C19: ='2. Orkurammi'!C33 -> 10 | D19: 0.4 | E19: 35 | F19: 14
A20: Sökkull undir útvegg | B20: ='2. Orkurammi'!D34 -> 0.48 | C20: ='2. Orkurammi'!C34 -> 60 | D20: ='2. Orkurammi'!E34 -> 12.34285714 | E20: 35 | F20: 432
A21: Sökkull undir innvegg | B21: ='2. Orkurammi'!D35 -> 0.46 | C21: ='2. Orkurammi'!C35 -> 20 | D21: ='2. Orkurammi'!E35 -> 11.82857143 | E21: 35 | F21: 414
A22: Aðrar | B22: ='2. Orkurammi'!D36 -> 0 | C22: ='2. Orkurammi'!C36 -> 0 | D22: 0 | E22: 35 | F22: 0
D23: =SUM(D13:D22) -> 33.32142857 | F23: =SUM(F13:F22) -> 1166.25
A24: Heild | B24: =D11+D23 -> 196.3624861 | C24: W/K
B25: =F11+F23 -> 6872.687015 | C25: W
A28: Tafla2 Loftskiptatap
A29: Loftskiptatap rýmis | C29: Eining
A30: Gólfflatarmál | B30: =+'2. Orkurammi'!N17 -> 200 | C30: m2
A31: Lofthæð | B31: 2.5 | C31: m
A32: Rúmmál hitaðs rýmis (VR) | B32: =B30*B31 -> 500 | C32: m3
A33: Fjöldi loftskipta (n) | B33: 0.8 | C33: h-1
A34: Varmaflutningsstuðull loftskipta (Hv) | B34: =0.34*B32*B33 -> 136 | C34: W/K
A36: Tafla 3 Afl- og varmaþörf
A37: Afl- og varmaþörf byggingar | C37: Eining
A38: Hitastig inni | B38: 20 | C38: °C
A39: Viðmiðunarútihiti | B39: -15 | C39: °C
A40: Reiknuð aflþörf (ФTOTAL) | B40: =(B38-(B39))*(B24+B34) -> 11632.68702 | C40: W
A41: Gráðutímafjöldi | B41: ='10. Veðurgögn'!N18 -> 126611 | C41: °Ch/ár
A42: Reiknuð varmaþörf á ársgrundvelli | B42: =B41*(B24+B34)*0.001 -> 42080.74673 | C42: kWh/ár

Sheet 7. Raki_rakamagn (hidden)
B3: Reikningar miðast við eftirfarandi umhverfisaðstæður
C4: Lofthiti (°C) | D4: Loftraki (%HR)
B5: Vetur
B6: Inni | C6: 22 | D6: 40
B7: Úti | C7: -2 | D7: 80
B8: Sumar
B9: Inni | C9: 22 | D9: 55
B10: Úti | C10: 10 | D10: 80
B13: VETUR
B14: Steyptur veggur einangraður að innan - Hitastig á efnisskilum
C15: d | D15: λ | E15: R | F15: ΔT | G15: T | J15: Z | M15: HR
C16: m | D16: W/mK | F16: °C | G16: °C | J16: s/m | M16: %
B17: Hitastig úti | G17: =C7 -> -2 | H17: 4.13 | L17: =D7*H17/100 -> 3.304 | M17: =(L17/H17)*100 -> 80 | N17: =IF(M17>100,"Döggvun","OK") -> OK
B19: Ytra yfirborð | E19: ='3. Þykkt einangrunar'!I9 -> 0.04 | F19: =(E19/$E$36)*($G$17-$G$35) -> -0.384
B20: ……………………………..skil | G20: =G17-F19 -> -1.616 | H20: =-0.0039*G20^3-0.0055*G20^2+0.3577*G20+4.8343 -> 4.258352232 | L20: =L17 -> 3.304 | M20: =(L20/H20)*100 -> 77.58869675 | N20: =IF(M20>100,"Döggvun","OK") -> OK
B21: Marmarasalli | C21: ='3. Þykkt einangrunar'!G10 -> 0.001 | D21: ='3. Þykkt einangrunar'!H10 -> 3 | E21: =C21/D21 -> 0.0003333333333 | F21: =(E21/$E$36)*($G$17-$G$35) -> -0.0032 | I21: 9e-07 | J21: =C21/I21 -> 1111.111111 | K21: =($L$35-$L$17)*J21/$J$36 -> 0.01596166631
B22: ……………………………..skil | G22: =G20-F21 -> -1.6128 | H22: =-0.0039*G22^3-0.0055*G22^2+0.3577*G22+4.8343 -> 4.25945612 | L22: =L20+K21 -> 3.319961666 | M22: 77.94332358 | N22: OK
B23: Múrhúð | C23: ='3. Þykkt einangrunar'!G11 -> 0.02 | D23: ='3. Þykkt einangrunar'!H11 -> 1.4 | E23: =C23/D23 -> 0.01428571429 | F23: -0.1371428571 | I23: 1.5e-06 | J23: =C23/I23 -> 13333.33333 | K23: =($L$35-$L$17)*J23/$J$36 -> 0.1915399958
B24: ……………………………..skil | G24: =G22-F23 -> -1.475657143 | H24: 4.307012856 | L24: =L22+K23 -> 3.511501662 | M24: 81.52986257 | N24: OK
B25: Járnbent steinsteypa | C25: ='3. Þykkt einangrunar'!G12 -> 0.18 | D25: ='3. Þykkt einangrunar'!H12 -> 1.95 | E25: 0.09230769231 | F25: -0.8861538462 | I25: 1.2e-06 | J25: 150000 | K25: 2.154824953
B26: ……………………………..skil | G26: =G24-F25 -> -0.5895032967 | H26: 4.6223223 | L26: =L24+K25 -> 5.666326615 | M26: 122.5861428 | N26: Döggvun
B27: Frauðplast | C27: ='3. Þykkt einangrunar'!G13 -> 0.08588735714 | D27: ='3. Þykkt einangrunar'!H13 -> 0.039 | E27: 2.202239927 | F27: -21.1415033 | I27: 2.5e-06 | J27: 34354.94286 | K27: 0.4935259207
B28: ……………………………..skil | G28: =G26-F27 -> 20.552 | H28: =0.0004*G28^3+0.0026*G28^2+0.4443*G28+4.2647 -> 17.96649401 | L28: =L26+K27 -> 6.159852535 | M28: 34.285223 | N28: OK
B29: Múrhúð | C29: ='3. Þykkt einangrunar'!G14 -> 0.025 | D29: ='3. Þykkt einangrunar'!H14 -> 1.2 | E29: 0.02083333333 | F29: -0.2 | I29: 1.5e-06 | J29: 16666.66667 | K29: 0.2394249947
B30: ……………………………..skil | G30: =G28-F29 -> 20.752 | H30: =0.0004*G30^3+0.0026*G30^2+0.4443*G30+4.2647 -> 18.17919411 | L30: =L28+K29 -> 6.39927753 | M30: 35.20110678 | N30: OK
B31: Málning (Alkyd) | C31: 0.000105 | F31: 0 | J31: 95000 | K31: 1.36472247
B32: ……………………………..skil | G32: =G30-F31 -> 20.752 | H32: =0.0004*G32^3+0.0026*G32^2+0.4443*G32+4.2647 -> 18.17919411 | L32: =L30+K31 -> 7.764 | M32: 42.70816381 | N32: OK
B33: Innra yfirborð | E33: ='3. Þykkt einangrunar'!I15 -> 0.13 | F33: -1.248
B35: Hitastig inni | G35: =C6 -> 22 | H35: 19.41 | L35: =D6*H35/100 -> 7.764 | M35: =(L35/H35)*100 -> 40 | N35: OK
E36: =SUM(E17:E35) -> 2.5 | F36: =SUM(F17:F35) -> -24 | J36: =SUM(J21:J31) -> 310466.054 | K36: =SUM(K17:K35) -> 4.46
B37: Mat á rakaflutningi
B38: Rakaflutningur inn (ginn) | C38: =((L35-H26)/(J31+J29+J27))*0.001 -> 2.151515594e-08 | D38: kg/m2s
B39: Rakaflutningur út (gút) | C39: =((H26-L17)/(J21+J23+J25))*0.001 -> 8.016824796e-09 | D39: kg/m2s
B40: Uppsafnað (guppsafnað) | C40: =C38-C39 -> 1.349833115e-08 | D40: kg/m2s
B41: Sekúndur per mánuð | C41: =60*60*24*30 -> 2592000 | D41: s/mán
B42: Raki per mánuð (vetur) | C42: =C40*C41 -> 0.03498767434 | D42: kg/m2mán
B43: Raki per mánuð (vetur) | C43: =C42*1000 -> 34.98767434 | D43: g/m2mán
B48: SUMAR
B49: Steyptur veggur einangraður að innan - Hitastig á efnisskilum
C50: d | D50: λ | E50: R | F50: ΔT | G50: T | J50: Z | M50: HR
C51: m | D51: W/mK | F51: °C | G51: °C | J51: s/m | M51: %
B52: Hitastig úti | G52: =C10 -> 10 | H52: 9.4 | L52: =D10*H52/100 -> 7.52 | M52: =(L52/H52)*100 -> 80 | N52: =IF(M52>100,"Döggvun","OK") -> OK
B54: Ytra yfirborð | E54: ='3. Þykkt einangrunar'!I9 -> 0.04 | F54: =(E54/$E$71)*($G$52-$G$70) -> -0.192
B55: ……………………………..skil | G55: =G52-F54 -> 10.192 | H55: =0.000003*G55^4+0.0001*G55^3+0.0102*G55^2+0.3387*G55+4.8184 -> 9.468216921 | L55: =L52 -> 7.52 | M55: =(L55/H55)*100 -> 79.42361336 | N55: =IF(M55>100,"Döggvun","OK") -> OK
B56: Marmarasalli | C56: ='3. Þykkt einangrunar'!G10 -> 0.001 | D56: ='3. Þykkt einangrunar'!H10 -> 3 | E56: =C56/D56 -> 0.0003333333333 | F56: =(E56/$E$71)*($G$52-$G$70) -> -0.0016 | I56: 9e-07 | J56: =C56/I56 -> 1111.111111 | K56: =($L$70-$L$52)*(J56/$J$71) -> 0.01458048258
B57: ……………………………..skil | G57: =G55-F56 -> 10.1936 | H57: =0.000003*G57^4+0.0001*G57^3+0.0102*G57^2+0.3387*G57+4.8184 -> 9.469161735 | L57: =L55+K56 -> 7.534580483 | M57: 79.56966724 | N57: =IF(M57>100,"Döggvun","OK") -> OK
B58: Múrhúð | C58: ='3. Þykkt einangrunar'!G11 -> 0.02 | D58: ='3. Þykkt einangrunar'!H11 -> 1.4 | E58: =C58/D58 -> 0.01428571429 | F58: =(E58/$E$71)*($G$52-$G$70) -> -0.06857142857 | I58: 1.5e-06 | J58: =C58/I58 -> 13333.33333 | K58: =($L$70-$L$52)*(J58/$J$71) -> 0.174965791
B59: ……………………………..skil | G59: =G57-F58 -> 10.26217143 | H59: 9.509726621 | L59: =L57+K58 -> 7.709546274 | M59: 81.07011464 | N59: =IF(M59>100,"Döggvun","OK") -> OK
B60: Járnbent steinsteypa | C60: ='3. Þykkt einangrunar'!G12 -> 0.18 | D60: ='3. Þykkt einangrunar'!H12 -> 1.95 | E60: 0.09230769231 | F60: =(E60/$E$71)*($G$52-$G$70) -> -0.4430769231 | I60: 1.2e-06 | J60: 150000 | K60: =($L$70-$L$52)*(J60/$J$71) -> 1.968365148
B61: ……………………………..skil | G61: =G59-F60 -> 10.70524835 | H61: 9.775297252 | L61: =L59+K60 -> 9.677911422 | M61: 99.00375582 | N61: =IF(M61>100,"Döggvun","OK") -> OK
B62: Frauðplast | C62: ='3. Þykkt einangrunar'!G13 -> 0.08588735714 | D62: ='3. Þykkt einangrunar'!H13 -> 0.039 | E62: 2.202239927 | F62: =(E62/$E$71)*($G$52-$G$70) -> -10.57075165 | I62: 2.5e-06 | J62: 34354.94286 | K62: =($L$70-$L$52)*(J62/$J$71) -> 0.4508204813
B63: ……………………………..skil | G63: =G61-F62 -> 21.276 | H63: =0.0004*G63^3+0.0026*G63^2+0.4443*G63+4.2647 -> 18.7469513 | L63: =L61+K62 -> 10.1287319 | M63: 54.0286884 | N63: =IF(M63>100,"Döggvun","OK") -> OK
B64: Múrhúð | C64: ='3. Þykkt einangrunar'!G14 -> 0.025 | D64: ='3. Þykkt einangrunar'!H14 -> 1.2 | E64: 0.02083333333 | F64: =(E64/$E$71)*($G$52-$G$70) -> -0.1 | I64: 1.5e-06 | J64: 16666.66667 | K64: =($L$70-$L$52)*(J64/$J$71) -> 0.2187072387
B65: ……………………………..skil | G65: =G63-F64 -> 21.376 | H65: =0.0004*G65^3+0.0026*G65^2+0.4443*G65+4.2647 -> 18.85704672 | L65: =L63+K64 -> 10.34743914 | M65: 54.87306309 | N65: =IF(M65>100,"Döggvun","OK") -> OK
B66: Málning (Alkyd) | C66: 0.0002 | F66: =(E66/$E$71)*($G$52-$G$70) -> 0 | J66: =25000 -> 25000 | K66: =($L$70-$L$52)*(J66/$J$71) -> 0.3280608581
B67: ……………………………..skil | G67: =G65-F66 -> 21.376 | H67: 18.85704672 | L67: =L65+K66 -> 10.6755 | M67: 56.61278864 | N67: =IF(M67>100,"Döggvun","OK") -> OK
B68: Innra yfirborð | E68: ='3. Þykkt einangrunar'!I15 -> 0.13 | F68: =(E68/$E$71)*($G$52-$G$70) -> -0.624
B70: Hitastig inni | G70: =C9 -> 22 | H70: 19.41 | L70: =D9*H70/100 -> 10.6755 | M70: 55 | N70: =IF(M70>100,"Döggvun","OK") -> OK
E71: =SUM(E52:E70) -> 2.5 | F71: =SUM(F52:F70) -> -12 | J71: =SUM(J56:J66) -> 240466.054 | K71: =SUM(K52:K70) -> 3.1555
B72: Mat á rakaflutningi
B73: Rakaflutningur inn (ginn) | C73: 0 | D73: kg/m2s
B74: Rakaflutningur út (gút) | C74: 0 | D74: kg/m2s
B75: Uppsafnað (guppsafnað) | C75: =((L70-L52)/(J71))*0.001 -> 1.312243432e-08 | D75: kg/m2s
B76: Sekúndur per mánuð | C76: =60*60*24*30 -> 2592000 | D76: s/mán
B77: Raki per mánuð (vetur) | C77: =C75*C76 -> 0.03401334976 | D77: kg/m2mán
B78: Raki per mánuð (vetur) | C78: =C77*1000 -> 34.01334976 | D78: g/m2mán
B109: VETUR
B110: Steyptur veggur einangraður að utan - Hitastig á efnisskilum
C111: d | D111: λ | E111: R | F111: ΔT | G111: T | J111: Z | M111: HR
C112: m | D112: W/mK | F112: °C | G112: °C | J112: s/m | M112: %
B113: Hitastig úti | G113: =C7 -> -2 | H113: 4.13 | L113: =(D7*H113)/100 -> 3.304 | M113: =(L113/H113)*100 -> 80 | N113: =IF(M113>100,"Döggvun","OK") -> OK
B115: Ytra yfirborð | E115: ='3. Þykkt einangrunar'!I48 -> 0.13 | F115: =(E115/$E$132)*($G$113-$G$131) -> -0.8109469845
B116: ……………………………..skil | G116: =G113-F115 -> -1.189053015 | H116: =-0.0039*G116^3-0.0055*G116^2+0.3577*G116+4.8343 -> 4.40775602 | L116: =L113 -> 3.304 | M116: =(L116/H116)*100 -> 74.95877687 | N116: =IF(M116>100,"Döggvun","OK") -> OK
B117: Máling (Akryl) | C117: 0.001 | D117: 1 | E117: =C117/D117 -> 0.001 | F117: =(E117/$E$132)*($G$113-$G$131) -> -0.006238053727 | J117: =25000 -> 25000 | K117: =($L$131-$L$113)*(J117/$J$132) -> 0.3771957361
B118: ……………………………..skil | G118: =G116-F117 -> -1.182814962 | H118: =-0.0039*G118^3-0.0055*G118^2+0.3577*G118+4.8343 -> 4.409966099 | L118: =L116+K117 -> 3.681195736 | M118: 83.4744679 | N118: =IF(M118>100,"Döggvun","OK") -> OK
B119: Klæðning | C119: ='4. Hiti á efnisskilum'!AB9 -> 0.02 | D119: ='4. Hiti á efnisskilum'!AC9 -> 0.16 | F119: 0 | I119: 1.15e-06 | J119: =C119/I119 -> 17391.30435 | K119: =($L$131-$L$113)*(J119/$J$132) -> 0.2623970338
B120: ……………………………..skil | G120: =G118-F119 -> -1.182814962 | H120: 4.409966099 | L120: =L118+K119 -> 3.94359277 | M120: 89.42455976 | N120: =IF(M120>100,"Döggvun","OK") -> OK
B121: Loftræst bil (mikið) | C121: ='4. Hiti á efnisskilum'!AB11 -> 0.02 | F121: 0 | I121: 2.5e-05 | J121: =C121/I121 -> 800 | K121: 0.01207026356
B122: ……………………………..skil | G122: =G120-F121 -> -1.182814962 | H122: 4.409966099 | L122: =L120+K121 -> 3.955663033 | M122: 89.69826398 | N122: =IF(M122>100,"Döggvun","OK") -> OK
B123: Steinull, veggplata | C123: ='4. Hiti á efnisskilum'!AB13 -> 0.1222846154 | D123: ='4. Hiti á efnisskilum'!AC13 -> 0.035 | E123: =C123/D123 -> 3.493846154 | F123: -21.79480002 | I123: 1.65e-05 | J123: 7411.188811 | K123: 0.1118187528
B124: ……………………………..skil | G124: =G122-F123 -> 20.61198506 | H124: =0.0004*G124^3+0.0026*G124^2+0.4443*G124+4.2647 -> 18.0300583 | L124: =L122+K123 -> 4.067481786 | M124: 22.55944888 | N124: =IF(M124>100,"Döggvun","OK") -> OK
B125: Járnbent steinsteypa | C125: ='4. Hiti á efnisskilum'!AB15 -> 0.18 | D125: ='4. Hiti á efnisskilum'!AC15 -> 1.95 | E125: =C125/D125 -> 0.09230769231 | F125: -0.5758203441 | I125: 1.2e-06 | J125: 150000 | K125: 2.263174417
B126: ……………………………..skil | G126: =G124-F125 -> 21.1878054 | H126: =0.0004*G126^3+0.0026*G126^2+0.4443*G126+4.2647 -> 18.65032009 | L126: =L124+K125 -> 6.330656203 | M126: 33.9439547 | N126: =IF(M126>100,"Döggvun","OK") -> OK
B127: Málning (Alkyd) | C127: 0.0002 | D127: 1 | E127: =C127/D127 -> 0.0002 | F127: -0.001247610745 | J127: 95000 | K127: 1.433343797
B128: ……………………………..skil | G128: =G126-F127 -> 21.18905302 | H128: 18.651684 | L128: =L126+K127 -> 7.764 | M128: 41.62626816 | N128: =IF(M128>100,"Döggvun","OK") -> OK
B129: Innra yfirborð | E129: ='3. Þykkt einangrunar'!I55 -> 0.13 | F129: -0.8109469845
B131: Hitastig inni | G131: =C6 -> 22 | H131: 19.41 | L131: =(D6*H131)/100 -> 7.764 | M131: 40 | N131: =IF(M131>100,"Döggvun","OK") -> OK
E132: =SUM(E113:E130) -> 3.847353846 | F132: =SUM(F113:F131) -> -24 | J132: =SUM(J113:J131) -> 295602.4932 | K132: =SUM(K113:K131) -> 4.46
B133: Mat á rakaflutningi
B134: Rakaflutningur inn (ginn) | C134: 0 | D134: kg/m2s
B135: Rakaflutningur út (gút) | C135: 0 | D135: kg/m2s
B136: Uppsafnað (guppsafnað) | C136: =((L131-L113)/J132)*0.001 -> 1.508782944e-08 | D136: kg/m2s
B137: Sekúndur per mánuð | C137: =60*60*24*30 -> 2592000 | D137: s/mán
B138: Raki per mánuð (vetur) | C138: =C136*C137 -> 0.03910765392 | D138: kg/m2mán
B139: Raki per mánuð (vetur) | C139: =C138*1000 -> 39.10765392 | D139: g/m2mán
B144: Sumar
B145: Steyptur veggur einangraður að utan - Hitastig á efnisskilum
C146: d | D146: λ | E146: R | F146: ΔT | G146: T | J146: Z | M146: HR
C147: m | D147: W/mK | F147: °C | G147: °C | J147: s/m | M147: %
B148: Hitastig úti | G148: =C10 -> 10 | H148: 9.4 | L148: =(D10*H148)/100 -> 7.52 | M148: =(L148/H148)*100 -> 80 | N148: =IF(M148>100,"Döggvun","OK") -> OK
B150: Ytra yfirborð | E150: ='3. Þykkt einangrunar'!I48 -> 0.13 | F150: =(E150/$E$167)*($G$148-$G$166) -> -0.4054734923
B151: ……………………………..skil | G151: =G148-F150 -> 10.40547349 | H151: =0.000003*G151^4+0.0001*G151^3+0.0102*G151^2+0.3387*G151+4.8184 -> 9.594961229 | L151: =L148 -> 7.52 | M151: =(L151/H151)*100 -> 78.37446989 | N151: =IF(M151>100,"Döggvun","OK") -> OK
B152: Máling (Akryl) | C152: 0.001 | D152: 1 | E152: =C152/D152 -> 0.001 | F152: =(E152/$E$167)*($G$148-$G$166) -> -0.003119026864 | J152: =25000 -> 25000 | K152: =($L$166-$L$148)*(J152/$J$167) -> 0.2668702119
B153: ……………………………..skil | G153: =G151-F152 -> 10.40859252 | H153: =0.000003*G153^4+0.0001*G153^3+0.0102*G153^2+0.3387*G153+4.8184 -> 9.596823354 | L153: =L151+K152 -> 7.786870212 | M153: 81.14008068 | N153: =IF(M153>100,"Döggvun","OK") -> OK
B154: Klæðning | C154: ='3. Þykkt einangrunar'!G49 -> 0.02 | F154: 0 | I154: 1.15e-06 | J154: =C154/I154 -> 17391.30435 | K154: =($L$166-$L$148)*(J154/$J$167) -> 0.1856488431
B155: ……………………………..skil | G155: =G153-F154 -> 10.40859252 | H155: 9.596823354 | L155: =L153+K154 -> 7.972519055 | M155: 83.07456291 | N155: =IF(M155>100,"Döggvun","OK") -> OK
B156: Loftræst bil (mikið) | C156: ='3. Þykkt einangrunar'!G50 -> 0.02 | F156: 0 | I156: 2.5e-05 | J156: =C156/I156 -> 800 | K156: 0.008539846782
B157: ……………………………..skil | G157: =G155-F156 -> 10.40859252 | H157: 9.596823354 | L157: =L155+K156 -> 7.981058902 | M157: 83.1635491 | N157: =IF(M157>100,"Döggvun","OK") -> OK
B158: Steinull, veggplata | C158: ='3. Þykkt einangrunar'!G51 -> 0.1222846154 | D158: ='3. Þykkt einangrunar'!H51 -> 0.035 | E158: =C158/D158 -> 3.493846154 | F158: -10.89740001 | I158: 1.65e-05 | J158: 7411.188811 | K158: 0.07911302115
B159: ……………………………..skil | G159: =G157-F158 -> 21.30599253 | H159: =0.0004*G159^3+0.0026*G159^2+0.4443*G159+4.2647 -> 18.77991253 | L159: =L157+K158 -> 8.060171923 | M159: 42.91911324 | N159: =IF(M159>100,"Döggvun","OK") -> OK
B160: Járnbent steinsteypa | C160: ='3. Þykkt einangrunar'!G54 -> 0.18 | D160: ='3. Þykkt einangrunar'!H54 -> 1.95 | E160: =C160/D160 -> 0.09230769231 | F160: -0.287910172 | I160: 1.2e-06 | J160: 150000 | K160: 1.601221272
B161: ……………………………..skil | G161: =G159-F160 -> 21.5939027 | H161: =0.0004*G161^3+0.0026*G161^2+0.4443*G161+4.2647 -> 19.09890788 | L161: =L159+K160 -> 9.661393195 | M161: 50.58610292 | N161: =IF(M161>100,"Döggvun","OK") -> OK
B162: Málning (Alkyd) | C162: 0.0002 | D162: 1 | E162: =C162/D162 -> 0.0002 | F162: -0.0006238053727 | J162: 95000 | K162: 1.014106805
B163: ……………………………..skil | G163: =G161-F162 -> 21.59452651 | H163: 19.09960414 | L163: =L161+K162 -> 10.6755 | M163: 55.89382858 | N163: =IF(M163>100,"Döggvun","OK") -> OK
B164: Innra yfirborð | E164: ='3. Þykkt einangrunar'!I55 -> 0.13 | F164: -0.4054734923
B166: Hitastig inni | G166: =C9 -> 22 | H166: 19.41 | L166: =(D9*H166)/100 -> 10.6755 | M166: 55 | N166: =IF(M166>100,"Döggvun","OK") -> OK
E167: =SUM(E148:E165) -> 3.847353846 | F167: =SUM(F148:F166) -> -12 | J167: =SUM(J148:J166) -> 295602.4932 | K167: =SUM(K148:K166) -> 3.1555
B168: Mat á rakaflutningi
B169: Rakaflutningur inn (ginn) | C169: 0 | D169: kg/m2s
B170: Rakaflutningur út (gút) | C170: 0 | D170: kg/m2s
B171: Uppsafnað (guppsafnað) | C171: =((L166-L148)/J167)*0.001 -> 1.067480848e-08 | D171: kg/m2s
B172: Sekúndur per mánuð | C172: =60*60*24*30 -> 2592000 | D172: s/mán
B173: Raki per mánuð (vetur) | C173: =C171*C172 -> 0.02766910357 | D173: kg/m2mán
B174: Raki per mánuð (vetur) | C174: =C173*1000 -> 27.66910357 | D174: g/m2mán

Sheet 8. Raki_mettunarþrýst (hidden)
B2: Reikningar miðast við eftirfarandi umhverfisaðstæður
C4: Lofthiti (°C) | D4: Loftraki (%HR)
B5: Vetur
B6: Inni | C6: 22 | D6: 40
B7: Úti | C7: -2 | D7: 80
B8: Sumar
B9: Inni | C9: 22 | D9: 55
B10: Úti | C10: 10 | D10: 80
B12: VETUR
B13: Steyptur veggur einangraður að innan - Hitastig á efnisskilum
C14: d | D14: λ | E14: R | F14: ΔT | G14: T | K14: Z | L14: Rakaþrýst | M14: Mettunarþr. | N14: HR
C15: m | D15: W/mK | F15: °C | G15: °C | H15: - | K15: s/m | L15: Pa | M15: Pa | N15: %
B16: Hitastig úti | G16: =C7 -> -2 | L16: =(N16/100)*M16 -> 413.6 | M16: 517 | N16: =D7 -> 80 | O16: =IF(N16>100,"Döggvun","OK") -> OK
B18: Ytra yfirborð | E18: ='3. Þykkt einangrunar'!I9 -> 0.04 | F18: =(E18/$E$35)*($G$16-$G$34) -> -0.384 | I18: 0.0019 | J18: =0.0000002*(((273.15+G16)^0.81)/(101325)) -> 1.845921237e-10 | K18: =I18/J18 -> 10292963.54
B19: ……………………………..skil | G19: =G16-F18 -> -1.616 | L19: =$L$34-((K20+K22+K24+K26+K28+K30+K32)/($K$35)*($L$34-$L$16)) -> 413.656712 | M19: =-0.0000001*G19^6+0.000004*G19^5+0.0005*G19^4+0.0231*G19^3+1.3647*G19^2+45.923*G19+603.97 -> 533.2281654 | N19: =(L19/M19)*100 -> 77.57593069 | O19: =IF(N19>100,"Döggvun","OK") -> OK
B20: Marmarasalli | C20: ='3. Þykkt einangrunar'!G10 -> 0.001 | D20: ='3. Þykkt einangrunar'!H10 -> 3 | E20: =C20/D20 -> 0.0003333333333 | F20: =(E20/$E$35)*($G$16-$G$34) -> -0.0032 | H20: 200 | J20: =0.0000002*(((273.15+G19)^0.81)/(101325)) -> 1.848038435e-10 | K20: =(C20*H20)/J20 -> 1082228574
B21: ……………………………..skil | G21: =G19-F20 -> -1.6128 | L21: =$L$34-((K22+K24+K26+K28+K30+K32)/($K$35)*($L$34-$L$16)) -> 419.6195554 | M21: =-0.0000001*G21^6+0.000004*G21^5+0.0005*G21^4+0.0231*G21^3+1.3647*G21^2+45.923*G21+603.97 -> 533.3615702 | N21: =(L21/M21)*100 -> 78.67450129 | O21: OK
B22: Múrhúð | C22: ='3. Þykkt einangrunar'!G11 -> 0.02 | D22: ='3. Þykkt einangrunar'!H11 -> 1.4 | E22: =C22/D22 -> 0.01428571429 | F22: -0.1371428571 | H22: 15 | J22: =0.0000002*(((273.15+G21)^0.81)/(101325)) -> 1.848056076e-10 | K22: =(C22*H22)/J22 -> 1623327365
B23: ……………………………..skil | G23: =G21-F22 -> -1.475657143 | L23: =$L$34-((K24+K26+K28+K30+K32)/($K$35)*($L$34-$L$16)) -> 428.5637352 | M23: 539.1032324 | N23: =(L23/M23)*100 -> 79.49567159 | O23: OK
B24: Járnbent steinsteypa | C24: ='3. Þykkt einangrunar'!G12 -> 0.18 | D24: ='3. Þykkt einangrunar'!H12 -> 1.95 | E24: 0.09230769231 | F24: -0.8861538462 | H24: 82 | J24: =0.0000002*(((273.15+G23)^0.81)/(101325)) -> 1.848812078e-10 | K24: 7.983504746e+10
B25: ……………………………..skil | G25: =G23-F24 -> -0.5895032967 | L25: =$L$34-((K26+K28+K30+K32)/($K$35)*($L$34-$L$16)) -> 868.4374354 | M25: 577.3678205 | N25: =(L25/M25)*100 -> 150.4132036 | O25: Döggvun
B26: Frauðplast | C26: ='3. Þykkt einangrunar'!G13 -> 0.08588735714 | D26: ='3. Þykkt einangrunar'!H13 -> 0.039 | E26: 2.202239927 | F26: -21.1415033 | H26: 29 | J26: =0.0000002*(((273.15+G25)^0.81)/(101325)) -> 1.853695271e-10 | K26: 1.343658473e+10
B27: ……………………………..skil | G27: =G25-F26 -> 20.552 | L27: =$L$34-((K28+K30+K32)/($K$35)*($L$34-$L$16)) -> 942.4700869 | M27: 2421.070883 | N27: =(L27/M27)*100 -> 38.92781882 | O27: OK
B28: Múrhúð | C28: ='3. Þykkt einangrunar'!G14 -> 0.025 | D28: ='3. Þykkt einangrunar'!H14 -> 1.2 | E28: 0.02083333333 | F28: -0.2 | H28: 150 | J28: =0.0000002*(((273.15+G27)^0.81)/(101325)) -> 1.969327636e-10 | K28: 1.904203207e+10
B29: ……………………………..skil | G29: =G27-F28 -> 20.752 | L29: =$L$34-((K30+K32)/($K$35)*($L$34-$L$16)) -> 1047.387531 | M29: 2451.240577 | N29: =(L29/M29)*100 -> 42.72887536 | O29: OK
B30: Málning (Alkyd) | C30: 0.0002 | F30: 0 | I30: 0.3 | J30: =0.0000002*(((273.15+G29)^0.81)/(101325)) -> 1.970413806e-10 | K30: =I30/J30 -> 1522522828
B31: ……………………………..skil | G31: =G29-F30 -> 20.752 | L31: =$L$34-(K32/$K$35)*($L$34-$L$16) -> 1055.7763 | M31: 2451.240577 | N31: =(L31/M31)*100 -> 43.07110079 | O31: OK
B32: Innra yfirborð | E32: ='3. Þykkt einangrunar'!I15 -> 0.13 | F32: -1.248 | I32: 0.008 | J32: =0.0000002*(((273.15+G31)^0.81)/(101325)) -> 1.970413806e-10 | K32: =I32/J32 -> 40600608.74
B34: Hitastig inni | G34: =C6 -> 22 | L34: =(N34/100)*M34 -> 1056 | M34: 2640 | N34: =D6 -> 40 | O34: OK
E35: =SUM(E16:E34) -> 2.5 | F35: =SUM(F16:F34) -> -24 | K35: =SUM(K16:K34) -> 1.165926366e+11 | L35: =SUM(L16:L34) -> 6645.511355
B36: Mat á útþornun veggjar
B37: Rakaflutningur inn (ginn) | C37: =((L34-M25)/(K32+K30+K28+K26)) -> 1.406015604e-08 | D37: kg/m2s
B38: Rakaflutningur út (gút) | C38: =((M25-L16)/(K18+K20+K22+K24)) -> 1.983840608e-09 | D38: kg/m2s
B39: Uppsafnað (guppsafnað) | C39: =C37-C38 -> 1.207631543e-08 | D39: kg/m2s
B40: Sekúndur per mánuð | C40: =60*60*24*30 -> 2592000 | D40: s/mán
B41: Raki per mánuð (vetur) | C41: =C39*C40 -> 0.03130180959 | D41: kg/m2mán
B42: Raki per mánuð (vetur) | C42: =C41*1000 -> 31.30180959 | D42: g/m2mán
B49: SUMAR
B50: Steyptur veggur einangraður að innan - Hitastig á efnisskilum
C51: d | D51: λ | E51: R | F51: ΔT | G51: T | K51: Z | L51: Rakaþrýst | M51: Mettunarþr. | N51: HR
C52: m | D52: W/mK | F52: °C | G52: °C | H52: - | K52: s/m | L52: Pa | M52: Pa | N52: %
B53: Hitastig úti | G53: =C10 -> 10 | L53: =(N53/100)*M53 -> 982.4 | M53: 1228 | N53: =D10 -> 80 | O53: =IF(N53>100,"Döggvun","OK") -> OK
B55: Ytra yfirborð | E55: ='3. Þykkt einangrunar'!I9 -> 0.04 | F55: =(E55/$E$72)*($G$53-$G$71) -> -0.192 | I55: 0.0019 | J55: =0.0000002*(((273.15+G53)^0.81)/(101325)) -> 1.911819125e-10 | K55: =I55/J55 -> 9938178.647
B56: ……………………………..skil | G56: =G53-F55 -> 10.192 | L56: =$L$71-((K57+K59+K61+K63+K65+K67+K69)/$K$72)*($L$71-$L$53) -> 982.2319885 | M56: =-0.0000001*G56^6+0.000004*G56^5+0.0005*G56^4+0.0231*G56^3+1.3647*G56^2+45.923*G56+603.97 -> 1243.95726 | N56: =(L56/M56)*100 -> 78.96026819 | O56: =IF(N56>100,"Döggvun","OK") -> OK
B57: Marmarasalli | C57: ='3. Þykkt einangrunar'!G10 -> 0.001 | D57: ='3. Þykkt einangrunar'!H10 -> 3 | E57: =C57/D57 -> 0.0003333333333 | F57: =(E57/$E$72)*($G$53-$G$71) -> -0.0016 | H57: 200 | J57: =0.0000002*(((273.15+G56)^0.81)/(101325)) -> 1.912869123e-10 | K57: =(C57*H57)/J57 -> 1045549837
B58: ……………………………..skil | G58: =G56-F57 -> 10.1936 | L58: =$L$71-((K59+K61+K63+K65+K67+K69)/$K$72)*($L$71-$L$53) -> 986.5660716 | M58: 1244.090397 | N58: =(L58/M58)*100 -> 79.30019184 | O58: =IF(N58>100,"Döggvun","OK") -> OK
B59: Múrhúð | C59: ='3. Þykkt einangrunar'!G11 -> 0.02 | D59: ='3. Þykkt einangrunar'!H11 -> 1.4 | E59: =C59/D59 -> 0.01428571429 | F59: -0.06857142857 | H59: 15 | J59: =0.0000002*(((273.15+G58)^0.81)/(101325)) -> 1.912877872e-10 | K59: =(C59*H59)/J59 -> 1568317583
B60: ……………………………..skil | G60: =G58-F59 -> 10.26217143 | L60: =$L$71-((K61+K63+K65+K67+K69)/$K$72)*($L$71-$L$53) -> 993.0671665 | M60: 1249.807888 | N60: 79.45758514 | O60: =IF(N60>100,"Döggvun","OK") -> OK
B61: Járnbent steinsteypa | C61: ='3. Þykkt einangrunar'!G12 -> 0.18 | D61: ='3. Þykkt einangrunar'!H12 -> 1.95 | E61: 0.09230769231 | F61: -0.4430769231 | H61: 82 | J61: =0.0000002*(((273.15+G60)^0.81)/(101325)) -> 1.913252838e-10 | K61: 7.714610273e+10
B62: ……………………………..skil | G62: =G60-F61 -> 10.70524835 | L62: =$L$71-((K63+K65+K67+K69)/$K$72)*($L$71-$L$53) -> 1312.85835 | M62: 1287.303823 | N62: 101.9851202 | O62: =IF(N62>100,"Döggvun","OK") -> Döggvun
B63: Frauðplast | C63: ='3. Þykkt einangrunar'!G13 -> 0.08588735714 | D63: ='3. Þykkt einangrunar'!H13 -> 0.039 | E63: 2.202239927 | F63: -10.57075165 | H63: 29 | J63: =0.0000002*(((273.15+G62)^0.81)/(101325)) -> 1.915675281e-10 | K63: 1.30018557e+10
B64: ……………………………..skil | G64: =G62-F63 -> 21.276 | L64: =$L$71-((K65+K67+K69)/$K$72)*($L$71-$L$53) -> 1366.754512 | M64: 2531.876586 | N64: 53.9818773 | O64: =IF(N64>100,"Döggvun","OK") -> OK
B65: Múrhúð | C65: ='3. Þykkt einangrunar'!G14 -> 0.025 | D65: ='3. Þykkt einangrunar'!H14 -> 1.2 | E65: 0.02083333333 | F65: -0.1 | H65: 150 | J65: =0.0000002*(((273.15+G64)^0.81)/(101325)) -> 1.973258907e-10 | K65: 1.900409514e+10
B66: ……………………………..skil | G66: =G64-F65 -> 21.376 | L66: =$L$71-((K67+K69)/$K$72)*($L$71-$L$53) -> 1445.531558 | M66: 2547.530195 | N66: 56.74247005 | O66: =IF(N66>100,"Döggvun","OK") -> OK
B67: Málning (Alkyd) | C67: 0.0002 | F67: 0 | I67: 0.3 | J67: =0.0000002*(((273.15+G66)^0.81)/(101325)) -> 1.973801756e-10 | K67: =I67/J67 -> 1519909480
B68: ……………………………..skil | G68: =G66-F67 -> 21.376 | L68: =$L$71-(K69/$K$72)*($L$71-$L$53) -> 1451.831989 | M68: =-0.0000001*G68^6+0.000004*G68^5+0.0005*G68^4+0.0231*G68^3+1.3647*G68^2+45.923*G68+603.97 -> 2547.530195 | N68: 56.98978529 | O68: =IF(N68>100,"Döggvun","OK") -> OK
B69: Innra yfirborð | E69: ='3. Þykkt einangrunar'!I15 -> 0.13 | F69: -0.624 | I69: 0.008 | J69: =0.0000002*(((273.15+G68)^0.81)/(101325)) -> 1.973801756e-10 | K69: =I69/J69 -> 40530919.46
B71: Hitastig inni | G71: =C9 -> 22 | L71: =(N71/100)*M71 -> 1452 | M71: 2640 | N71: =D9 -> 55 | O71: =IF(N71>100,"Döggvun","OK") -> OK
E72: =SUM(E53:E71) -> 2.5 | F72: =SUM(F53:F71) -> -12 | K72: =SUM(K57:K67) -> 1.132858305e+11 | L72: =SUM(L53:L71) -> 10973.24164
B73: Mat á útþornun veggjar
B74: Rakaflutningur inn (ginn) | C74: =(L71-M62)/(K69+K67+K65+K63) -> 4.906579805e-09 | D74: kg/m2s
B75: Rakaflutningur út (gút) | C75: =((M62-L53)/(K55+K57+K59+K61)) -> 3.822291251e-09 | D75: kg/m2s
B76: Uppsafnað (guppsafnað) | C76: =((M71-M53)/(K72)) -> 1.246404775e-08 | D76: kg/m2s
B77: Sekúndur per mánuð | C77: =60*60*24*30 -> 2592000 | D77: s/mán
B78: Raki per mánuð (vetur) | C78: =C76*C77 -> 0.03230681176 | D78: kg/m2mán
B79: Raki per mánuð (vetur) | C79: =C78*1000 -> 32.30681176 | D79: g/m2mán

Sheet 9. Alg. leiðnitölur
A1: Algengar varmaleiðnitölur (auk U gilda fyrir gluggagler)
A3: Efni | B3: Eðlisþéttleiki bil [kg/m3] | C3: Algengasti eðlisþéttleiki [kg/m3] | D3: Leiðnitala bil [W/mK] | E3: Leiðnitala [W/mK]
A4: Steinsteypa, múrhúð
A5: Steypa, bent og óbent | B5: 2200-2300 | C5: 2300 | D5: 1,7-1,95 | E5: 1.95
A6: Múrhúð rök (sement/sandur) | B6: 1800-1900 | C6: 1900 | D6: 1.4 | E6: 1.4
A7: Múrhúð þurr (sement/sandur) | B7: 1800-1900 | C7: 1900 | D7: 1.2 | E7: 1.2
A8: Múrhúð, kalk sement og sandur | B8: 1800 | C8: 1800 | D8: 1 | E8: 1
A9: Léttsteypa
A10: Frauðsteypa | B10: 300-700 | D10: 0,13-0,25 | E10: 0.2
A11: Vikursteypa | B11: 500-1000 | D11: 0,20-0,30 | E11: 0.26
A12: Gjallsteypa | B12: 1000-1400 | D12: 0,33-0,55 | E12: 0.5
A13: Grjót, sandur og möl
A14: Basalt, blágrýti, grágrýti | B14: 2700-3000 | D14: 2,3-3,5
A15: Jarðvegur (rakur) | B15: 1500-2000 | C15: 1900 | D15: 1,4-2,5 | E15: 2.3
A16: Sandur | B16: 1700-2200 | D16: 1,5-2,0 | E16: 2
A17: Möl | B17: 1700-2200 | D17: 1,5-2,0 | E17: 2
A18: Tré og plötur úr tré
A19: Timbur | B19: 400-450 | C19: 450 | D19: 0.13 | E19: 0.13
A20: Harðar trétrefjaplötur | B20: 900 | C20: 900 | D20: 0,13-0,14 | E20: 0.13
A21: Trétrefjaplötur MDF | B21: 600 | C21: 600 | D21: 0,13-0,14 | E21: 0.14
A22: Mjúkar trefjaplötur | B22: 300 | C22: 300 | E22: 0.05
A23: Krossviður | B23: 500 | C23: 500 | D23: 0.13 | E23: 0.13
A24: Einangrunarefni
A25: Filtmottur | B25: 100 | C25: 100 | E25: 0.04
A26: Einangrunarkorkur | B26: 140-200 | D26: 0,04-0,047
A27: Steinull
A28: Léttull | B28: 22 | C28: 22 | D28: 0,040-0,042 | E28: 0.042
A29: Þéttull | B29: 30-35 | C29: 32 | D29: 0.039 | E29: 0.039
A30: Steinull (stíf) | B30: 80- | E30: 0.036
A31: Plötur 100 | B31: 100 | C31: 100 | E31: 0.037
A32: Plötur 200 | B32: 200 | C32: 200 | E32: 0.037
A33: Frauðplast (polystyren) | B33: 20-25 | E33: 0.036
A34: Polyurethan frauð | B34: 28-55 | D34: 0,024-0,028 | E34: 0.024
A35: Ýmis byggingarefni
A36: Þakpappi
A37: tjöruborinn | B37: 700-800 | C37: 800 | E37: 0.175
A38: asfaltborinn | B38: 1100 | C38: 1100 | E38: 0.26
A39: Gifs | B39: 1200 | C39: 1200 | E39: 0.52
A40: Gifsplötur + pappír | B40: 800-900 | C40: 800 | D40: 0,20-0,25 | E40: 0.2
A41: Þakdúkur (gúmmí PVC)
A42: mjúkur | C42: 1300 | E42: 0.175
A43: harður | C43: 1400 | D43: 0,25-0,35 | E43: 0.25
A44: Málmar
A45: Álblöndur | B45: 2700 | C45: 2700 | E45: 175
A46: Steypujárn | B46: 7200 | C46: 7200 | E46: 58
A47: Ryðfrítt stál | C47: 7800 | E47: 17
A48: Annað
A49: Gólfteppi | B49: 200 | E49: 0.06
A50: Línóleum | B50: 1200 | E50: 0.2
A51: Acryl (t.d. Plexýgler) | B51: 1180 | C51: 1180 | E51: 0.2
A52: Gúmmí | B52: 1100-1200 | C52: 1100 | E52: 0.175
A53: Kyrrstætt loft | B53: 1.23 | C53: 1.23 | D53: 0,025-0,026 | E53: 0.026
A54: Argon | B54: 1.7 | C54: 1.7 | E54: 0.017
A55: Ís (við 0°C) | B55: 900-910 | E55: 2.2
A56: Vatn | B56: 1000 | C56: 1000 | D56: 0,58-0,60 | E56: 0.58
A57: Snjór | B57: 100-800 | C57: 300 | D57: 0,058-1,3 | E57: 0.23
A60: Gler | B60: U gildi [W/m2K]
A61: Tvöfalt venjulegt (12 mm loftbil) | B61: 2.9
A62: TopN+ (16 mm gasfyllt bil) | B62: 1.1
A63: Sólvarnargler - Energy N | B63: 1.1
A64: TopN+ (12 mm gasfyllt bil) | B64: 1.3
A65: K gler (12 mm gasfyllt bil) | B65: 1.6
A66: K gler (12 mm loftbil) | B66: 1.9

Sheet 10. Veðurgögn (hidden)
A1: Veðurgögn - Gráðutímafjöldi
A4: Tafla 1 Veðurgögn frá sjálfvirkum veðurstöðvum fyrir árið 2012 (heimild Veðurstofa Íslands)
B5: Janúar | C5: Febrúar | D5: Mars | E5: Apríl | F5: Maí | G5: Júní | H5: Júlí | I5: Ágúst | J5: September | K5: Október | L5: Nóvember | M5: Desember | N5: Samtals
A6: Akureyri | B6: 14522.4 | C6: 12193.6 | D6: 12476.6 | E6: 13004 | F6: 10674 | G6: 8285 | H6: 6435.5 | I6: 5974.8 | J6: 10050.4 | K6: 13181 | L6: 14942.1 | M6: 15608.2 | N6: 137347.6
A7: Egilsstaðir | B7: 14811.5 | C7: 12209.7 | D7: 12714.5 | E7: 13817.4 | F7: 11469.2 | G7: 9101.9 | H7: 7229.8 | I7: 6930.3 | J7: 9941.2 | K7: 13496.1 | L7: 14893.4 | M7: 16450.8 | N7: 143065.8
A8: Hella | B8: 15807.7 | C8: 12379.6 | D8: 12938.2 | E8: 11677 | F8: 10404 | G8: 6890.7 | H8: 5519 | I8: 6011.4 | J8: 9728.9 | K8: 12667.9 | L8: 14419.4 | M8: 14799.3 | N8: 133243.1
A9: Ísafjörður | B9: 14862.1 | C9: 12995.2 | D9: 13486.3 | E9: 12923.4 | F9: 11086.5 | G9: 8398.8 | H9: 6524.7 | I9: 6710.5 | J9: 10020.6 | K9: 12976 | L9: 14279.2 | M9: 14835.9 | N9: 139099.2
A10: Keflavík | B10: 14424.5 | C10: 12083.2 | D10: 12695.2 | E10: 11398.6 | F10: 10463.9 | G10: 6855.8 | H10: 5795.8 | I10: 6077.7 | J10: 9152.8 | K10: 11474.5 | L10: 13282.6 | M10: 13647.4 | N10: 127352
A11: Reykjavík | B11: 14554.6 | C11: 12138.8 | D11: 12618.2 | E11: 11278 | F11: 10167.1 | G11: 6702.6 | H11: 5644 | I11: 5691.4 | J11: 9099.2 | K11: 11550.8 | L11: 13304.5 | M11: 13861.8 | N11: 126611
A13: Tafla 2
A14: Sjálfvirk uppfærsla gagna
A15: Valin röð | B15: =MATCH('6. Orkubúskapur'!H2,Staður,0) -> 6
A17: Dálkur | B17: 1 | C17: 2 | D17: 3 | E17: 4 | F17: 5 | G17: 6 | H17: 7 | I17: 8 | J17: 9 | K17: 10 | L17: 11 | M17: 12 | N17: Samtals
B18: =INDEX(Gráðutímar_mán,Valin_röð,$B$17) -> 14554.6 | C18: =INDEX(Gráðutímar_mán,Valin_röð,$C$17) -> 12138.8 | D18: =INDEX(Gráðutímar_mán,Valin_röð,$D$17) -> 12618.2 | E18: =INDEX(Gráðutímar_mán,Valin_röð,$E$17) -> 11278 | F18: =INDEX(Gráðutímar_mán,Valin_röð,$F$17) -> 10167.1 | G18: =INDEX(Gráðutímar_mán,Valin_röð,$G$17) -> 6702.6 | H18: =INDEX(Gráðutímar_mán,Valin_röð,$H$17) -> 5644 | I18: =INDEX(Gráðutímar_mán,Valin_röð,$I$17) -> 5691.4 | J18: =INDEX(Gráðutímar_mán,Valin_röð,$J$17) -> 9099.2 | K18: =INDEX(Gráðutímar_mán,Valin_röð,$K$17) -> 11550.8 | L18: =INDEX(Gráðutímar_mán,Valin_röð,$L$17) -> 13304.5 | M18: =INDEX(Gráðutímar_mán,Valin_röð,$M$17) -> 13861.8 | N18: =SUM(B18:M18) -> 126611
A20: Tafla 3 Meðalhiti árs 2012
A21: Staður | B21: Hiti (°C)
A22: Akureyri | B22: 4.4
A23: Egilsstaðir | B23: 3.7
A24: Hella | B24: 4.8
A25: Ísafjörður | B25: 4.2
A26: Keflavík | B26: 5.5
A27: Reykjavík | B27: 5.6
A29: Tafla 4
A30: Sjálfvirk uppfærla v. töflu 3
A31: Valin röð | B31: =MATCH('6. Orkubúskapur'!H2,Staður,0) -> 6
A32: Meðalhiti | B32: =INDEX(Meðalhiti_2012,B31) -> 5.6
A34: Tafla 5 Sundurliðuð varmaþörf
C35: Varmaþörf vegna:
A36: Mánuður | B36: Gráðutímar | C36: Loftskipti | D36: Varmatap
A37: Janúar | B37: =B18 -> 14554.6 | C37: =B37*'6. Orkubúskapur'!$B$34*0.001 -> 1979.4256 | D37: =B37*'6. Orkubúskapur'!$B$24*0.001 -> 2857.977441
A38: Febrúar | B38: =C18 -> 12138.8 | C38: =B38*'6. Orkubúskapur'!$B$34*0.001 -> 1650.8768 | D38: =B38*'6. Orkubúskapur'!$B$24*0.001 -> 2383.604947
A39: Mars | B39: =D18 -> 12618.2 | C39: =B39*'6. Orkubúskapur'!$B$34*0.001 -> 1716.0752 | D39: =B39*'6. Orkubúskapur'!$B$24*0.001 -> 2477.741123
A40: Apríl | B40: =E18 -> 11278 | C40: =B40*'6. Orkubúskapur'!$B$34*0.001 -> 1533.808 | D40: =B40*'6. Orkubúskapur'!$B$24*0.001 -> 2214.576119
A41: Maí | B41: =F18 -> 10167.1 | C41: =B41*'6. Orkubúskapur'!$B$34*0.001 -> 1382.7256 | D41: =B41*'6. Orkubúskapur'!$B$24*0.001 -> 1996.437033
A42: Júní | B42: =G18 -> 6702.6 | C42: =B42*'6. Orkubúskapur'!$B$34*0.001 -> 911.5536 | D42: =B42*'6. Orkubúskapur'!$B$24*0.001 -> 1316.1392
A43: Júlí | B43: =H18 -> 5644 | C43: =B43*'6. Orkubúskapur'!$B$34*0.001 -> 767.584 | D43: =B43*'6. Orkubúskapur'!$B$24*0.001 -> 1108.269872
A44: Ágúst | B44: =I18 -> 5691.4 | C44: =B44*'6. Orkubúskapur'!$B$34*0.001 -> 774.0304 | D44: =B44*'6. Orkubúskapur'!$B$24*0.001 -> 1117.577454
A45: September | B45: =J18 -> 9099.2 | C45: =B45*'6. Orkubúskapur'!$B$34*0.001 -> 1237.4912 | D45: =B45*'6. Orkubúskapur'!$B$24*0.001 -> 1786.741534
A46: Október | B46: =K18 -> 11550.8 | C46: =B46*'6. Orkubúskapur'!$B$34*0.001 -> 1570.9088 | D46: =B46*'6. Orkubúskapur'!$B$24*0.001 -> 2268.143805
A47: Nóvember | B47: =L18 -> 13304.5 | C47: =B47*'6. Orkubúskapur'!$B$34*0.001 -> 1809.412 | D47: =B47*'6. Orkubúskapur'!$B$24*0.001 -> 2612.504697
A48: Desember | B48: =M18 -> 13861.8 | C48: =B48*'6. Orkubúskapur'!$B$34*0.001 -> 1885.2048 | D48: =B48*'6. Orkubúskapur'!$B$24*0.001 -> 2721.93751
B49: =SUM(B37:B48) -> 126611 | C49: =SUM(C37:C48) -> 17219.096 | D49: =SUM(D37:D48) -> 24861.65073
B50: Heild | C50: =SUM(C49:D49) -> 42080.74673

Sheet 11. Raki_töflur (hidden)
A1: Útreikningur á rakaflutningi
A3: 1. Mettunarrakamagn í lofti [g/m3] - Heimild Sandin 2010
A5: Nálgunarformúlur byggðar á töflu (TABELL 4.4) hér til hliðar:
A22: -3,0≤°C≤1,0
B23: -0,0039*Ti^3-0,0055*Ti^2+0,3577*Ti+4,8343
A24: 1,1≤°C≤7,0
B25: 0,0002*Ti^3+0,0099*Ti^2+0,3369*Ti+4,8383
A26: 7,1≤°C≤15,0
B27: 3E-06*Ti^4+0,0001*Ti^3+0,0102*Ti^2+0,3387*Ti+4,8184
A28: 15,1≤°C≤23,0
B29: 0,0004*Ti^3+0,0026*Ti^2+0,4443*Ti+4,2647
A34: 2. Gufuhleypnisstuðull [m2/s] - Heimild: Sandin 2010
B36: Efnislag | C36: [m2/s]
B37: Kyrrstætt loft | C37: 2.5e-05
B38: Steypa - K30 | C38: 0,3-1,5E-6
B39: Steypa - K50 | C39: 0,1-1,0E-6
B40: Léttsteypa (ρ=500 kg/m3) | C40: 5-15E-6
B41: Steinull (ρ=15 kg/m3) | C41: 2.5e-05
B42: Steinull (ρ=200 kg/m3) | C42: 1e-05
B43: Frauðplast | C43: 0,1-5E-6
B44: Sparsmúr (lime mortar) | C44: 2-4E-6
B45: Sparslmúr (cement mortar) | C45: 1-2E-6
B46: Sandsteinn (Kalksandsten - sænska) | C46: 0,5-1,5E-6
B47: Múrsteinn (Tegel - sænska) | C47: 3-6E-6
B48: Viður - léttar viðartegundir (hornrétt á trefjar) | C48: 0,3-2E-6
A50: 3. Rakaflæðimótstaða [s/m] - Heimild: Sandin 2010
B52: Efnislag | C52: Þykkt [mm] | D52: [s/m]
B53: Gifsplata | C53: 13 | D53: (2-4)E3
B54: Spónaplata | C54: 13 | D54: (20*30)E3
B55: Spónaplata | C55: 19 | D55: (25-35)E3
B56: Tjöruborin trétrefjaplata (ashalt impregnated) | C56: 13-19 | D56: (5-15)E3
B57: Hörð trétrefjaplata | C57: 3.2 | D57: (10-40)E3
B58: Vatnsþéttur (þak)-pappi | D58: >1000E3
B59: Vindþéttur pappi | D59: <20E3
B60: PVC (plast)-filma | C60: 1000 g/m2 | D60: (600-1200)E3
B61: Polyethylene filma | C61: 0,15-0,20 | D61: (2000-4000)E3
B62: PVC motta | C62: 2-3 | D62: (400-600)E3
B63: Akryllatexmálning | C63: 0,1-0,2 | D63: (20-30)E3
B64: Alkydmálning | C64: 0,09-0,12 | D64: (70-120)E3
B65: PVA latexmálning | C65: 0,1-0,12 | D65: (7-10)E3
B66: Polyutethanmálning | C66: 0,03-0,04 | D66: (90-120)E3
B67: PVC-málning | C67: 0,03-0,04 | D67: (50-70)E3
B68: Silikatmálning | C68: 0,08-0,10 | D68: (5-6)E3

Sheet 12. Gerðir (hidden)
A2: Gólfgerðir | B2: Leiðrétting vegna hitamunar | C2: Hitamunur
A3: Gólf án gólfgeisla | B3: =15/35 -> 0.4285714286 | C3: 15
A4: Gólf m/gólfgeisla og einangrað á milli | B4: =20/35 -> 0.5714285714 | C4: 20
A5: Gólf m/gólfgeisla ísteyptum í gólfplötu | B5: ='4. Hiti á efnisskilum'!G67/35 -> 0.7197802198 | C5: ='4. Hiti á efnisskilum'!G67 -> 25.19230769
A6: Önnur | B6: Sláið inn gildi | C6: ='2. Orkurammi'!J12*35 -> 
A8: =MATCH('2. Orkurammi'!H12,Gólfgerðir,0) -> 1
A11: Gler | B11: U gildi [W/m2K]
A12: Tvöfalt venjulegt (12 mm loftbil) | B12: 2.9
A13: Sólvarnargler - Energy N | B13: 1.1
A14: TopN+ (16 mm gasfyllt bil) | B14: 1.1
A15: TopN+ (12 mm gasfyllt bil) | B15: 1.3
A16: K gler (12 mm gasfyllt bil) | B16: 1.6
A17: K gler (12 mm loftbil) | B17: 1.9
A18: Annað | B18: Sláið inn gildi
A20: =MATCH('2. Orkurammi'!H22,Gluggagerðir,0) -> 3
A21: =MATCH('2. Orkurammi'!H24,Gluggagerðir,0) -> 6
A23: Hurðir
A24: Einangruð útihurð - 45 mm | B24: 1.2
A25: Einangruð útihurð - 60 mm | B25: 0.9
A26: Aðalhurð glerjuð að hluta | B26: ='5. Gluggar&Hurðir'!AN30 -> 1.56433958
A27: Annað | B27: Sláið inn gildi
A29: =MATCH('2. Orkurammi'!H34,Hurðagerðir,0) -> 3
A31: Svalahurð (0,9*2,05) - Ghlutf c.a. 52 % | B31: ='5. Gluggar&Hurðir'!AN29 -> 1.78201626
A32: Annað | B32: Sláið inn gildi
A34: =MATCH('2. Orkurammi'!H36,Svalahurðir,0) -> 1
A37: Gerð byggingarhluta
A39: Þak | B39: U-gildi | C39: Ein. Þykkt [mm]
A40: Létt þak | B40: ='3. Þykkt einangrunar'!E109 -> 0.2 | C40: ='3. Þykkt einangrunar'!F111 -> 211.7014286
A41: Uppstólað þak á steypta plötu | B41: ='3. Þykkt einangrunar'!E209 -> 0.2 | C41: ='3. Þykkt einangrunar'!F211 -> 220.5628205
A42: Viðsnúið þak | B42: ='3. Þykkt einangrunar'!E158 -> 0.2 | C42: ='3. Þykkt einangrunar'!F160 -> 249.7312454
A43: Kalt þak | B43: ='3. Þykkt einangrunar'!E264 -> 0.2 | C43: ='3. Þykkt einangrunar'!F266 -> 175.6671429
A44: Annað | B44: ='3. Þykkt einangrunar'!E531 ->  | C44: ='3. Þykkt einangrunar'!F533 -> 0
A45: =MATCH('2. Orkurammi'!M22,Þak_gerðir,0) -> 1
A47: Steyptir veggir
A48: Steyptur veggur einangraður að innan | B48: ='3. Þykkt einangrunar'!E20 -> 0.4 | C48: ='3. Þykkt einangrunar'!F22 -> 85.88735714
A49: Steyptur veggur einangraður að utan | B49: ='3. Þykkt einangrunar'!E67 -> 0.4 | C49: ='3. Þykkt einangrunar'!F69 -> 122.2846154
A50: Annað | B50: ='3. Þykkt einangrunar'!E570 ->  | C50: ='3. Þykkt einangrunar'!F572 -> 0
A51: =MATCH('2. Orkurammi'!M24,Steyptir_veggir_gerðir,0) -> 1
A53: Léttir veggir
A54: Léttur veggur | B54: ='3. Þykkt einangrunar'!E319 -> 0.3 | C54: ='3. Þykkt einangrunar'!F321 -> 132.9961084
A55: Annað | B55: ='3. Þykkt einangrunar'!E620 ->  | C55: ='3. Þykkt einangrunar'!F622 -> 0
A56: =MATCH('2. Orkurammi'!M26,Léttir_veggir_gerðir,0) -> 1
A58: Gólf
A59: Gólf - Sökkull með innveggjum | B59: ='3. Þykkt einangrunar'!E378 -> 0.3 | C59: ='3. Þykkt einangrunar'!F372 -> 144.4422093
A60: Steypt gólf með gólfgeisla (tvöföld einangrun) | B60: ='3. Þykkt einangrunar'!E482 -> 0.3 | C60: ='3. Þykkt einangrunar'!F484 -> 44.5
A61: Steypt gólf með gólfgeisla (einföld einangrun) | B61: ='3. Þykkt einangrunar'!E427 -> 0.3 | C61: ='3. Þykkt einangrunar'!F429 -> 73.98275862
A62: Annað | B62: ='3. Þykkt einangrunar'!E686 ->  | C62: ='3. Þykkt einangrunar'!F679 -> 0
A63: =MATCH('2. Orkurammi'!M28,Gólf_gerðir,0) -> 1
A66: Byggingarhlutar | B66: Leiðnitap | C66: %
A67: Þak | B67: ='2. Orkurammi'!E16 -> 40 | C67: =B67/$B$74 -> 0.2037048969
A68: Steyptir veggir | B68: ='2. Orkurammi'!E17 -> 60 | C68: =B68/$B$74 -> 0.3055573454
A69: Léttir veggir | B69: ='2. Orkurammi'!E18 -> 0 | C69: 0
A70: Gólf | B70: ='2. Orkurammi'!E19 -> 25.71428571 | C70: 0.130953148
A71: Gluggar | B71: ='2. Orkurammi'!E20 -> 30.67368651 | C71: 0.1562095037
A72: Hurðir | B72: ='2. Orkurammi'!E21 -> 6.653085355 | C72: 0.03388165166
A73: Kuldabrýr | B73: ='2. Orkurammi'!E37 -> 33.32142857 | C73: 0.1696934543
B74: =SUM(B67:B73) -> 196.3624861
A77: Já
A78: Nei

Sheet 13. Leiðbeiningar
A1: Leiðbeiningar | M1: ='1. Yfirlit'!B46 -> Orkurammi_mini.xlsm
A4: Verkefnaskjal (workbook) þetta var unnið sumarið 2013 í samstarfi við Mannvirkjastofnun..
A5: Lögum samkvæmt er hlutverk Mannvirkjastofunar m.a. að annast gerð leiðbeininga og hafa
A6: eftirlit með því að þeim lögum sé framfylgt sem lúta að fagsviði stofnunarinnar.
A8: Skjal þetta er hugsað sem aðstoð fyrir hönnuði við gerð orkureikninga og orkuramma, á
A9: hönnunarstigi byggingar. Lagt hefur verið upp með það að gera skjalið eins gagnvirkt og kostur er.
A10: Þannig geta hönnuðir prófað sín hönnun, þ.e. hvort ákvæðum í byggingarreglugerð varðandi
A11: leiðnitap byggingarhluta o.þ.h sé fullnægt. Ef hönnun uppfyllir ekki reglugerð eða ef viðkomandi vill
A12: prófa aðra hönnunarmöguleika er það auðvelt með hjálp forritsins. Þannig er hægt að prófa mismunandi
A13: gerðir byggingarhluta, mismunandi gler í glugga, skoða áhrif kuldabrúa og o.s.frv. Skjal þetta getur einnig
A14: komið sé vel sem lærdómstól fyrir þá sem eru að stíga sín fyrstu skref í þessum fræðum. Ath. skjal að
A15: er ekki ætlað til nákvæmnishönnunar á byggingum heldur tæki þar sem hönnuðir geta grófhannað hús
A16: m.t.t. þess að uppfylla kröfur um varmaleiðnitap.
A18: Hér að neðan geta notendur nálgast leiðbeiningar sem gætu nýst vel. Að stórum hluta er hér um að ræða
A19: notkunarleiðbeiningar sem snúa að hvernig nota skal forritið, en þó er einnig hluti til útskýringar á þeirri
A20: fræði sem notuð er við útreikninga.
A22: ATH! Þetta er svokölluð Minni útgáfa forritsins, þ.e. ekki eru öll undirskjöl höfð með (t.d. raki o.fl)
A23: ATH! Mannvirkjastofnun tekur þátt í dreifingu forritsins en er á engan hátt ábyrg fyrir
A24: niðurstöðum. Ábyrgð er algjörlega í höndun þess er skjalið notar.
A25: ATH! Mikilvægt er að velja Enable Macros the skjalið er opnað í fyrsta sinn, til þess að allt virki sem
A26: skildi. Skjalið fær þá endinguna .xlsm (í stað .xls eða .xlsx)
A27: ATH! Stór hluti að hverju skjali er verndaður (protected) gegn breytingum, ef ástæða þykir til er
A28: hægt að aflæsa (unprotect) með því að hægrsmella á nafn skjalsins og velja "Unprotect sheet"
A30: Í þessari Excel verkefnaskjali eru 12 undirskjöl (sheets) auk leiðbeiningaskjals:
A31: =HYPERLINK("["&M1&"]Yfirlit","1. Yfirlit") -> 1. Yfirlit
A32: =HYPERLINK("["&M1&"]Orkurammi_l","2. Orkurammi") -> 2. Orkurammi
A33: =HYPERLINK("["&M1&"]Þykkt_einangrunar_l","3. Þykkt einangrunar") -> 3. Þykkt einangrunar
A34: =HYPERLINK("["&M1&"]Hiti_á_efnisskilum_l","4. Hiti á efnisskilum") -> 4. Hiti á efnisskilum
A35: =HYPERLINK("["&M1&"]Gluggar_og_hurðir_l","5. Gluggar og hurðir") -> 5. Gluggar og hurðir
A36: =HYPERLINK("["&M1&"]Orkubúskapur_l","6. Orkubúskapur") -> 6. Orkubúskapur
A37: =HYPERLINK("["&M1&"]Rakabúskapur_l","7.-8. Rakabúskapur") -> 7.-8. Rakabúskapur
A38: =HYPERLINK("["&M1&"]Algengar_leiðnitölur_l","9. Algengar leiðnitölur") -> 9. Algengar leiðnitölur
A39: =HYPERLINK("["&M1&"]Veðurgögn_l","10. Veðurgögn") -> 10. Veðurgögn
A40: =HYPERLINK("["&M1&"]Raki_töflur_l","11. Raki töflur") -> 11. Raki töflur
A41: =HYPERLINK("["&M1&"]Gerðir_l","12. Gerðir") -> 12. Gerðir
A42: =HYPERLINK("["&M1&"]Heimildir_l","Helstu heimildir") -> Helstu heimildir
A51: 1. Yfirlit
A52: Eins konar "upphafsskjal" þar sem notendur geta notað flýtihnappa til þess að komast auðveldlega
A53: milli undirskjala og enn fremur á viðeigandi stað í hverju undirskali. Til hægri má sjá 5 flýtihnappa
A54: sem vísa hver um sig á mikilvæga staði í verkefnaskjalinu (Orkurammi, Algengar leiðnitölur,
A55: Orkubúskapur, Raki og Leiðbeiningar). Auðvelt er að komast aftur í yfirlitsskjalið með því að smella á
A56: flýtihnappinn "Yfirlit" í hverju skjali fyrir sig.
A57: Þar fyrir neðan er tafla sem notendur geta notað til að ákvarða og tilgreina gerð byggingarhluta
A58: hverju sinni, þ.e. Gerð þaks, veggja, gólfs o.s.frv. Með því að smella á þá gerð þaks sem óskað er
A59: eftir, hoppar forritið yfir í skjalið "Þykkt einangrunar" og birtist uppbygging þeirrar þakgerðar
A60: (eins og hún birtist í ÍST 66:2008). Notendur geta þá breytt þykktum og leiðnitölum einstakra laga
A61: að vild. Ef notandi vill nota aðra þakgerð en sýnd er á listanum í "Yfirlitsskjalinu" skal velja "Annað",
A62: þá birtist sniðmát (template) fyrir þak, þar sem hægt er að slá inn uppbygginu o.þ.h. að vild
A63: Hafa skal í huga ef uppbygging er slegin inn frá grunni þarf að gæta að því að formúlur séu
A64: réttar, t.d. fyrir einangrunarþykkt. Sama gildir fyrir veggi og gólf.
A66: Í dálkinn Notað gott að merkja við með krossi hvers konar gerð af byggingarhluta er notuð hverju sinni.
A67: Þannig að ef notað er steyptur veggur einangraður að innan er sá reitur í Notað fylltur með krossi en
A68: reiturinn fyrir steyptan vegg einangraður að utan hafður tómur.
A70: Neðarlega á "Yfirlits" blaðinu/skjalinu er annars vegar skífurit sem sýnir hlutfall rauntaps fyrir hvern
A71: byggingarhluta sem fall af heildartapinu. Einnig má sjá töflu með helstu niðurstöðum. Ath skal að bæði
A72: skífuritið og taflan uppfærast sjálfkrafa, þ.e. ekki er gert ráð fyrir að þeim sé breytt á neinn hátt
A73: (nema útliti ef þess er óskað).
A75: Skjalið er verndað (protected) gegn breytingum að mörgu leiti. Til að mynda er ekki hægt að bæta við
A76: röðum né dálkum og ekki er hægt að færa eða breyta flýtihnöppum. Í raunar er lokað fyrir allar
A77: breytingar nema fyrir dálkinn "Notað", annað uppfærist sjálfkrafa eftir breytinum annars staðar
A78: í skjalinu.
A80: 2. Orkurammi
A81: Tekur saman leiðnitap einstakra byggingarhluta, sem og kuldabrúa og finnur heildarleiðnitap byggingar.
A82: Heildarleiðnitapið er svo borið saman við ákvæði í byggingarreglugerð. Orkuramminn sjálfur birtist
A83: mönnum vinstra megin í skjalinu. Hægra megin er svo eins konar hönnunarhluti forritsins. Þar skal hönnun
A84: byggingarinnar að stóru leiti fara fram. Sambland af svokölluðum dropdown listum og innsláttarreitum
A85: eru í boði og auðvelt að prófa mismunandi hönnunarmöguleika á stuttum tíma. Allt sem valið er
A86: í hönnunarfasanum hefur áhrif á orkurammann og uppfærir hann sjálfkrafa. Hér að neðan má lesa
A87: stuttar skýringar/fræði bakvið hvern hönnunarmöguleika:
A89: Fyrsta hönnunartaflan ber heitið Gerð einstakra byggingarhluta. Fyrst er notandi spurður út í
A90: gólfgerð, þ.e. er notuð gólfhitun (gólfgeisli) eða ekki. Valmöguleikar sem í boði eru (hitamunur byggður
A91: á forsendum úr ÍST 66:2008
B93: Gólfgerð | F93: Hitamunur | G93: Stuðull
B94: Gólf án gólfgeisla | F94: 15/35 | G94: =15/35 -> 0.4285714286
B95: Gólf m/gólfgeisla og einangrað á milli | F95: 20/35 | G95: =20/35 -> 0.5714285714
B96: Gólf m/gólfgeisla ísteyptum í gólfplötu | F96: 25,19/35 | G96: =25.19/35 -> 0.7197142857
B97: Önnur | F97: - | G97: -
A101: Sá möguleiki (leiðréttingarstuðull) sem valin er í þessum reit kemur til minnkunar inn í reiti E19 og
A102: E34 (raunleiðnitap um gólf og kuldabrú vegna sökkuls undir útvegg), þannig að leiðnitap af völdum
A103: þessara þátta er margfaldað með stuðlinum. T.d ef valið er Gólf án gólfgeisla er leiðnitapið
A104: margfaldað með 0,43 o.s.frv. Notandi hefur einnig möguleika á að velja „Önnur“ þar sem hann
A105: tilgreinir sjálfur þannig leiðréttingastuðul sem hann telur lýsa best sinni hönnun. Ef það er gert litast
A106: reitur J12 brúnleitur og skal nýi leiðréttingarstuðullinn slegin inn í þann reit.
A108: Ef notandi hefur valið að nota gólf með gólfgeisla hefur hann næst valmöguleika á því að tilgreina
A109: hvort einangrun sé undir geislanum eða ekki. Ef valið er að einangra ekki undir geisla kemur stuðull
A110: 45/35=1,29, vegna hitamismunar, til hækkunar þegar leiðnitap vegna sökkuls undir innvegg (reitur
A111: E35). Þessi stuðull er 1,00 ef einangrun er undir geisla þar sem útilokum hefur verið hluti af kuldabrú
A112: vegna sökkuls undir innvegg.
A114: Gluggar: Fyrst er spurt hvort U-gildi (vegið) glugga sé þekkt fyrirfram eða ekki. Hönnuðir hafa
A115: hugsanlega upplýsingar eða hafa gert reikninga áður til þess að finna U-gildi glugga. Ef svo er skal
A116: velja „Já“. Þá litast reitur I18 brúnleitur og skal U-gildið slegið þar inn. Það U gildi er svo afritað í
A117: Orkurammann og miðast reikningar við það gildi. Ef U-gildi er hins vegar ekki þekkt skal valið „Nei“.
A118: Þá er farið neðar í töfluna og valdar glergerðir sem notaðar verða, bæði fast gler og gler í opnanleg
A119: fög. Forritið reiknar sig þá í gegnum dæmigert íslenskt hús með timburglugga (sjá skjalið
A120: Gluggar&Hurðir) og metur U-gildi glugga út frá þeim glergerðum sem valdar voru: Þau gler sem í boði
A121: eru og U-gildi þeirra eru:
B123: Gler | E123: U gildi
B124: Tvöfalt venjulegt (12 mm loftbil) | E124: 2.9
B125: TopN+ (16 mm gasfyllt bil) | E125: 1.1
B126: Sólvarnargler - Energy N | E126: 1.1
B127: TopN+ (12 mm gasfyllt bil) | E127: 1.3
B128: K gler (12 mm gasfyllt bil) | E128: 1.6
B129: K gler (12 mm loftbil) | E129: 1.9
A131: Ef valið er Annað litast reitir I22 og/eða I24 og skal slegið inn U-gildi gluggaglerja þar. Allt sem valið er
A132: afritast svo í Orkurammann.
A134: Hurðir: Sama gildi um og hurðir og með gluggana. Möguleiki er að slá inn vegið U-gildi hurða eða
A135: velja gerð hverrar útihurðir (Aðalhurð og svalahurð) sem forritið keyrir svo saman við dæmigert hús
A136: og metur vegið U-gildi. Þær hurðatýpur sem í gefnar eru:
B138: Aðalhurð | E138: U gildi
B139: Einangruð útihurð - 45 mm | E139: 1.2
B140: Einangruð útihurð - 60 mm | E140: 0.9
B141: Aðalhurð glerjuð að hluta | E141: 1.56
B142: Annað | E142: -
B144: Svalahurð | E144: U gildi
B145: Svalahurð (0,9*2,05) - 52 % glerh. | E145: 1.78
B146: Annað | E146: -
A148: Bæði fyrir glugga og hurðir er möguleiki að nákvæmnisreikna U-gildi hvers glugga og fá þannig
A149: nákvæmt U-gildi glugga eða hurða fyrir þá hönnun. Til þess skal nota töflur 1 og 2 í skjalinu
A150: Gluggar&Hurðir.
A151: Þar næst er tafla þar sem skal slá inn Flatarmál byggingarhluta. Þau flatarmál sem slegin eru inn
A152: afritast svo beint inn í Orkurammann og miðast útreikningar við þessar tölur. Ath ! að þegar er slegið
A153: er inn Heildarfermetrafjöldi gólfs er miðað við all það gólfrými sem möglegt að ganga á í byggingunni,
A154: þ.e. ef húsið er á mörgum hæðum skal summera upp allt gólfpláss. Þegar slegið er inn flatarmál gólfs
A155: hins vegar er miðað við botnplötu.
A157: Að lokum í hönnunarhlutanum er valin gerð byggingarhluta (Þak, steyptir veggir, léttir veggir, gólf).
A158: Valið er af listum (merktir grænu) og uppfærist þá U-gildi og einangrunarþykkt. Öll U-gildi eru stillt
A159: þannig í upphafi að þau mæti lágmarkskröfum skv. Byggingarreglugerð. T.d. eru allar þaktýpur með
A160: U-gildi 0,20. Ætlast er til að notendur geri allar breytingar á gerðum byggingarhluta í skjalinu Þykkt
A161: einangrunar. Best er að gera það með því að fara í skjalið Yfirlit og velja þaðan þá gerð sem notandi
A162: vill hverju sinni. T.d. ef valið er að nota Létt þak fyrir byggingu skal fara í skjalið Yfirlit og velja Létt
A163: þak, þá er notandi fluttar á réttan stað í skjalinu Þykkt einangrunar. Þar er svo hægt að breyta
A164: uppsetningu eða einangrunarþykktum o.s.frv til þess að ná fram hægastæðara U-gildi.
A166: Allt sem vaið er í hönnunartöflunum afritast í Orkurammann, aðeins þeir reitir sem eru merktir með
A167: bláu krefjast þess að slegið sé beint inn .Það á við lýsingu á byggingarhlutum, lengd kuldabrúa. Einnig
A168: verða reitir með línutapi hverrar kuldarbrúar fyrir sig opnir svo hægt að breyta þeim gildum ef óskað
A169: er. Stuðst var við ÍST 66:2008 og bókina Varmaeinangrun húsa (1992) við ákvörðun á þeim
A170: kuldabrúargildum (ψ) sem eru í töflu 3.
A172: "Orkurammi reiknar kröfu út frá töflu 1 og raun út frá töflu 2 og töflu 3 (þ.e. tafla2+tafla3).
A173: Ef krafa/raun hefur gildi stærra eða jafnt og 1, birtist í reiknum við hliðina á "Í lagi" annars
A174: "Ekki í lagi!". Ef gildið er lægra er 1 er nauðsynlegt að gera breytingar. Augljósasti valmöguleikinn
A175: væri að auka einangrunarþykktir (og þarf með minnka leiðnitap) einhvers byggingarhluta.
A177: "Orkurammi" athugar einnig hvort skilyrðum sem koma fram í kafla 13. kafla byggingarreglugerðar um
A178: Orkusparnað og hitaeinangrun sé fullnægt:
A179: Annars vegar grein 13.2.4 þar sem segir „Á aðaluppdráttum skal gefið upp reiknað leiðnitap fyrir
A180: hverja °C á fermetra gólfflatar (W/m2°C)". Í reglugerðinni er ekki tilgreint hámarks eða lágmark
A181: sem þetta gildi þarf að uppfylla.
A182: Hins vegar grein 13.3.2 um leyfilegt hámark U-gilda einstakra byggingarhluta (ný mannvirki og
A183: viðbyggingar). Þar stendur: Útveggir, vegið meðaltal leyft hámark 0,85. Ef reiknað gildi frá "Orkuramma"
A184: er hærra en 0,85 birtist "Ekki í lagi!". Þá þarf að gera einhverjar breytingar á hönnun.
A186: ATH !Góð regla er að athuga hvort tiltekið gildi í reit hafi formúlu bak við sig ('='), þá skal því ekki breytt
A187: nema að vel ígrunduðu máli
A189: Einnig er hvatt til þess að notendur lesi vel þær athugasemdir sem koma fram í skjalinu "Orkurammi".
A191: 3. Þykkt einangrunar
A192: Innsláttarskjal. Frá "Þykkt einangrunar" geta notendur ákvarðað einangrunarþykktir og U gildi þaks,
A193: steyptra veggja, léttra veggja og gólfs. Settar hafa verið upp týpur af áðurgreindum byggingarhlutum
A194: sem eru dæmigerðar fyrir íslenskar aðstæður. Valmöguleiki er að slá inn einangrunarþykkt fyrirfram og
A195: reiknar þá forritið samsvarandi U-gildi eða ef U-gildi er ekki þekkt er einangrunarþykktin reiknuð út
A196: miðað við það mótstöðugildi Rnauðsyn og mótstöðu einstakra laga. Gerðir byggingarhlua sem eru í boði:
A198: Þak: Létt þak, uppstólað þak á steypta plötu, viðsnúið þak og kalt þak
A199: Steyptir veggir: Steyptur veggur einangraður að innan, steyptur veggur einangraður að utan
A200: Léttir veggir: Léttur veggur (dæmigerður)
A201: Gólf: Steypt gólf (sökkull með innveggjum) og steypt gólf með gólfgeisla (einangrað í 1 eða 2 lögum)
A203: Einnig gefst notendum kostur á að velja Annað í skjalinu "Yfirlit" og geta þá sett upp sýnar eigin
A204: uppbyggingu á hverjum byggingarhluta. Ef Annaðer valið þarf að huga vel að því að formúlur séu
A205: réttar hverju sinni. Rétt er að hafa í huga að einnig er hægt að breyta sniðmátunum fyrir hverja týpu
A206: (t.d. Létt þak) en huga verður þá að því að fylgjast með því að formúlur séu réttur, t.d. ef bætt er við
A207: eða efnum/lögum eytt.
A208: Með "Þykkt einangrunar" getur notandinn reiknað einangrunarþykkt og U-gildi byggingarhluta.
A209: Athuga skal þó að einangrunarþykktin hefur formúlu á bak við sig sem byggir m.a. á Rnauðsyn
A210: (nauðsynlegri varmamótstöðu) sem aftur ákvarðar U gildi. Með öðrum örðum þá breytist ekki
A211: einangrunarþykktin ef loka U-gildið er slegið beint inn. Aftur á móti ef einangrunarþykktinni er breytt
A212: þá fylgir U-gildið með. Einnig er hægt að hækka/lækka Rnauðsyn, þá fylgja gildin á bæði U og
A213: einangrunarþykktinni með. Einangrunarþykktirnar eins og þær eru þegar skjalið er opnað í fyrsta sinn
A214: eru lágmarks einangrunarþykktir, þ.e. þær þykktir sem þarf til að mæta lágmarkskröfum
A215: um U-gildi byggingarhluta skv. byggingarreglugerð. Ef að U-gildið uppfyllir ekki kröfu reglugerðar
A216: birtist "Ekki í lagi" í reitnum við hliðina á sem er merktur gulur.
A218: Sniðmátin fyrir hverja gerð eru fengin úr ÍST66:2008. Þar sem aðalnotagildi þessa skjals er hugsað á
A219: hönnunartíma mannvirkis eru ýmsum "smáatriðum" í uppbyggingu byggingahluta breytt. Svo sem fyrir
A220: Létt þak. T.d er Rakavarnarlag (PE) og lag fyrir lagnagrind/steinull (25 mm) tekið saman í eitt
A221: loftbil með varmamótstöðu 0,08. Ef hönnuðir hafa undir höndum nákvæma lokahönnun er auðvelt að
A222: bæta/breyta sniðmátinu fyrir t.d. Létt þak, eða hreinlega velja Annað í "Yfirlit" og setja upp eigin gerð.
A224: Reiknað gildi fyrir þykkt einangrunar er fengið með því að taka Rnauðsyn (sem er miðað við U frá
A225: reglugerð auk kuldabrúa eða annarra liða sem auka á nauðsynlega þykkt). Frá Rnauðsyn eru dregnar
A226: allar mótstöður laga nema einangrunarlagsins. Að lokum er margfaldað með leiðnitölu einangrunar.
A227: Þessu má lýsa með formúlunni:
A231: Þar sem:
A235: U gildið og einangrunarþykktin fyrir notaða gerð hvers byggingarhluta (þak, veggir, gólf) afritast
A236: sjálfkrafa inn í hönnunartöfluna fyrir Gerð byggingarhluta í "Orkurammi", þar sem velja þarf þá gerð
A237: hvers byggingarhluta af lista sem notuð er hverju sinni.
A239: 4. Hiti á efnisskilum
A240: Gefur frekari upplýsingar um hitastig á milli einstakra laga í byggingarhluta. Sett hefur verið upp hiti
A241: á efnisskilum fyrir 4 týpur:
A242: Steyptur veggur einangraður að innan, steyptur veggur einangraður að utan
A243: Gólf með gólfgeisla (2 einangrunarlög) og gólf með gólfgeisla (1 einagrunarlag)
A244: Ekki þarf að slá inn neinar tölur í skjalið "Hiti á efnisskilum" nema ef notendur vilja nota önnur gildi
A245: á inni-og/eða útihita. Gröf fyrir hita á efnisskilum sýna hitastig (°C) sem fall af þykkt byggingarhluta (m)
A246: eða öfugt. Miðað er við hitastig inni og úti líkt og tekið er fram í staðli (Δt=35°C). Reiknað er með
A247: línulegri nálgun á hitastigul milli einstakra laga. Ath. skal að ef um ræðir gólf með gólfgeisla
A248: er innihitinn tekin sem 30°C og jarðhiti 5°C (Δt=25°C). Einfalt er setja upp samskonar töflu og graf fyrir
A249: aðrar gerðir byggingarhluta með því að nota sömu formúlur og í "Hiti á efnisskilum".
... 114 more rows

Sheet Tölur fyrir gröf (hidden)
B2: 0 | C2: 30 | J2: 0 | K2: ='4. Hiti á efnisskilum'!AF63 -> 30
B3: ='4. Hiti á efnisskilum'!C64 -> 0.03 | C3: ='4. Hiti á efnisskilum'!G65 -> 30 | J3: ='4. Hiti á efnisskilum'!AB64 -> 0.035 | K3: ='4. Hiti á efnisskilum'!AF65 -> 30
B4: ='4. Hiti á efnisskilum'!C64+'4. Hiti á efnisskilum'!C66 -> 0.055 | C4: ='4. Hiti á efnisskilum'!G67 -> 25.19230769 | J4: ='4. Hiti á efnisskilum'!AB64+'4. Hiti á efnisskilum'!AB66 -> 0.135 | K4: ='4. Hiti á efnisskilum'!AF67 -> 29.62820513
B5: ='4. Hiti á efnisskilum'!C64+'4. Hiti á efnisskilum'!C66+'4. Hiti á efnisskilum'!C68 -> 0.155 | C5: ='4. Hiti á efnisskilum'!G69 -> 24.80769231 | J5: ='4. Hiti á efnisskilum'!AB64+'4. Hiti á efnisskilum'!AB66+'4. Hiti á efnisskilum'!AB68 -> 0.2089827586 | K5: ='4. Hiti á efnisskilum'!AF69 -> 15.875
B6: ='4. Hiti á efnisskilum'!C64+'4. Hiti á efnisskilum'!C66+'4. Hiti á efnisskilum'!C68+'4. Hiti á efnisskilum'!C70 -> 0.1995 | C6: ='4. Hiti á efnisskilum'!G71 -> 16.25 | J6: =J5 -> 0.2089827586 | K6: ='4. Hiti á efnisskilum'!AF72 -> 5
B7: ='4. Hiti á efnisskilum'!C64+'4. Hiti á efnisskilum'!C66+'4. Hiti á efnisskilum'!C68+'4. Hiti á efnisskilum'!C70 -> 0.1995 | C7: ='4. Hiti á efnisskilum'!G74 -> 5
B16: 0 | C16: ='4. Hiti á efnisskilum'!G5 -> -15 | J16: 0 | K16: ='4. Hiti á efnisskilum'!AF5 -> -15
B17: 0 | C17: ='4. Hiti á efnisskilum'!G8 -> -14.44 | J17: 0 | K17: ='4. Hiti á efnisskilum'!AF8 -> -13.817
B18: ='4. Hiti á efnisskilum'!C9 -> 0.001 | C18: ='4. Hiti á efnisskilum'!G10 -> -14.43533333 | J18: ='4. Hiti á efnisskilum'!AB9 -> 0.02 | K18: ='4. Hiti á efnisskilum'!AF10 -> -13.817
B19: ='4. Hiti á efnisskilum'!C9+'4. Hiti á efnisskilum'!C11 -> 0.021 | C19: ='4. Hiti á efnisskilum'!G12 -> -14.23533333 | J19: ='4. Hiti á efnisskilum'!AB9+'4. Hiti á efnisskilum'!AB11 -> 0.04 | K19: ='4. Hiti á efnisskilum'!AF12 -> -13.817
B20: ='4. Hiti á efnisskilum'!C9+'4. Hiti á efnisskilum'!C11+'4. Hiti á efnisskilum'!C13 -> 0.201 | C20: ='4. Hiti á efnisskilum'!G14 -> -12.94302564 | J20: ='4. Hiti á efnisskilum'!AB9+'4. Hiti á efnisskilum'!AB11+'4. Hiti á efnisskilum'!AB13 -> 0.1622846154 | K20: ='4. Hiti á efnisskilum'!AF14 -> 17.977
B21: ='4. Hiti á efnisskilum'!C9+'4. Hiti á efnisskilum'!C11+'4. Hiti á efnisskilum'!C13+'4. Hiti á efnisskilum'!C15 -> 0.2868873571 | C21: ='4. Hiti á efnisskilum'!G16 -> 17.88833333 | J21: ='4. Hiti á efnisskilum'!AB9+'4. Hiti á efnisskilum'!AB11+'4. Hiti á efnisskilum'!AB13+'4. Hiti á efnisskilum'!AB15 -> 0.3422846154 | K21: ='4. Hiti á efnisskilum'!AF16 -> 18.817
B22: ='4. Hiti á efnisskilum'!C9+'4. Hiti á efnisskilum'!C11+'4. Hiti á efnisskilum'!C13+'4. Hiti á efnisskilum'!C15+'4. Hiti á efnisskilum'!C17 -> 0.3118873571 | C22: ='4. Hiti á efnisskilum'!G18 -> 18.18 | J22: ='4. Hiti á efnisskilum'!AB9+'4. Hiti á efnisskilum'!AB11+'4. Hiti á efnisskilum'!AB13+'4. Hiti á efnisskilum'!AB15 -> 0.3422846154 | K22: ='4. Hiti á efnisskilum'!AF19 -> 20
B23: ='4. Hiti á efnisskilum'!C9+'4. Hiti á efnisskilum'!C11+'4. Hiti á efnisskilum'!C13+'4. Hiti á efnisskilum'!C15+'4. Hiti á efnisskilum'!C17 -> 0.3118873571 | C23: ='4. Hiti á efnisskilum'!G21 -> 20
